Workbook

Sheet Summary
A1: Total utility | G1: Utility from direct effects only
B2: Pareto | C2: Log-normal | D2: Ratio vs. GD | H2: Mean | I2: Variance | J2: Pareto | K2: Log-normal
A3: GiveDirectly | B3: =GiveDirectly!B30 -> -1.02173826e+15 | C3: =GiveDirectly!B31 ->  | D3: =C3/$C$3 ->  | G3: GiveDirectly | H3: =GiveDirectly!G3 -> 1 | I3: =GiveDirectly!H3 -> 0.04 | J3: =GiveDirectly!G4 -> 0.8583274111 | K3: =GiveDirectly!G5 -> disabled
A4: THL | B4: =THL!B34 ->  | C4: =THL!B35 ->  | D4: =C4/C3 ->  | G4: AMF | H4: =D17 -> 11.22497216 | I4: =E17 -> 0.07486453585 | J4: =ParetoPosterior(median,alpha,H4:I4) -> 7.665173159 | K4: =LognormPosterior(mu_global_poverty,sigma_global_poverty,H4:I4) -> 7.681366974
A5: Cage-Free | B5: ='Cage-Free'!B23 -> 1.715592314e+24 | C5: ='Cage-Free'!B24 -> 122694.7079 | D5: =C5/C3 ->  | G5: THL | H5: =THL!I5 -> 5429.917126 | I5: =THL!J5 -> 0.495042629 | J5: =THL!I6 -> 396.4936815 | K5: =THL!I7 -> 194.8313381
A6: AI Safety | B6: ='AI Safety'!B11 -> 6.31129671e+27 | C6: ='AI Safety'!B12 -> 213917.632 | D6: =C6/$C$3 ->  | G6: Cage-free Campaigns | H6: ='Cage-Free'!I5 -> 88741.19675 | I6: ='Cage-Free'!J5 -> 0.3152875372 | J6: ='Cage-Free'!I6 -> 16679.26918 | K6: ='Cage-Free'!I7 -> 2531.889137
A7: AI Targeted Values Spreading | B7: ='AI Targeted Values Spreading'!B23 -> 7.213229965e+36 | C7: ='AI Targeted Values Spreading'!B24 -> 25902525.57 | D7: =C7/$C$3 -> 
A10: All Cause Areas
A11: Cause/Org | B11: Low CI | C11: High CI | D11: Mu | E11: Sigma^2 | F11: Pareto | G11: Log-normal | H11: Notes
A12: GiveDirectly | F12: =B3 -> -1.02173826e+15 | G12: =C3 -> 
A13: THL | F13: =B4 ->  | G13: =C4 -> 
A14: Cage-Free Campaigns* | F14: =J6 -> 16679.26918 | G14: =K6 -> 2531.889137
A15: AI Safety | F15: =B6 -> 6.31129671e+27 | G15: =C6 -> 213917.632
A16: AI Targeted Values Spreading | F16: =B7 -> 7.213229965e+36 | G16: =C7 -> 25902525.57
A17: AMF* | B17: 9 | C17: 14 | D17: =GEOMEAN(B17,C17) -> 11.22497216 | E17: =LogVariance(B17,C17) -> 0.07486453585 | F17: =ParetoPosterior(median,alpha,$D17:$E17) -> 7.665173159 | G17: =LognormPosterior(mu_global_poverty,sigma_global_poverty,$D17:$E17) -> 7.681366974
A18: Deworming* | B18: 6 | C18: 30 | D18: 13.41640786 | E18: 0.2727045962 | F18: 3.727488266 | G18: =LognormPosterior(mu_global_poverty,sigma_global_poverty,$D18:$E18) -> 4.409474582
A19: Criminal Justice* | B19: 0.5 | C19: 15 | D19: 2.738612788 | E19: 0.5763019197 | F19: 0.6081676099 | G19: =LognormPosterior(mu_policy,sigma_policy,$D19:$E19) -> 1.090886336 | H19: different grants estimated at $30 and $300 per prison-year averted; see http://www.openphilanthropy.org/focus/us-policy/criminal-justice-reform/justleadershipusa-close-rikers-campaign#Direct_impact and http://www.openphilanthropy.org/focus/us-policy/criminal-justice-reform/pew-public-safety-performance-project#Cost_effectiveness
A20: Immigration* | B20: 2 | C20: 25 | D20: 7.071067812 | E20: 0.4279617155 | F20: 1.389960699 | G20: =LognormPosterior(mu_policy,sigma_policy,$D20:$E20) -> 2.138807793
A21: Land Use Reform* | B21: 0.1 | C21: 10 | D21: 1 | E21: 0.7803041461 | F21: 0.329900947 | G21: =LognormPosterior(mu_policy,sigma_policy,$D21:$E21) -> 0.6240528676
A22: Macroeconomic Policy* | B22: 1 | C22: 100 | D22: 10 | E22: 0.7803041461 | F22: 0.9174460237 | G22: =LognormPosterior(mu_policy,sigma_policy,$D22:$E22) -> 1.637272224
A23: Biosecurity | D23: ='AI Safety'!H26/10 -> 9.776663781e+38 | E23: ='AI Safety'!I26 -> 5.294081039 | F23: =ParetoPosterior(1,alpha,$D23:$E23) -> 6.31129671e+26 | G23: =LognormPosterior(mu_far_future,sigma_far_future,$D23:$E23) -> 171474.9893
A24: Geoengineering | D24: =D23 -> 9.776663781e+38 | E24: =E23 -> 5.294081039 | F24: =ParetoPosterior(median,alpha,$D24:$E24) -> 6.31129671e+26 | G24: =LognormPosterior(mu_far_future,sigma_far_future,$D24:$E24) -> 171474.9893
A25: *includes direct effects only

Sheet Globals
A1: Enable calculations? | C1: Prior (log-normal) | J1: Prior (Pareto)
A2: 0 | B2: 0 for false, 1 for true | D2: policy | E2: global poverty | F2: factory farming | G2: far future
A3: For detailed explanations of everything, see http://mdickens.me/2016/05/17/quantifying_far_future_effects/ | C3: mu | D3: 0.1 | E3: 0.1 | F3: 1 | G3: 10 | H3: mu | I3: center of distribution (median) | K3: median | L3: 0.1
C4: sigma | D4: =sigma_global_poverty -> 0.75 | E4: 0.75 | F4: =sigma_global_poverty -> 0.75 | G4: =sigma_global_poverty -> 0.75 | H4: sigma | I4: scale (logarithmic base 10); this corresponds to standard deviation, not variance | K4: alpha | L4: 1.5
C5: log-normal prior is parameterized by Y = mu*10^(sigma*X) for standard normal R.V. X | G5: TODO: maybe far future sigma should be bigger
A7: Far future outcome probabilities | D7: Outcomes in a column are conditional on outcomes to the left, e.g. P(we reduce WAS on balance) = D8*B8. I explain my reasoning here: http://mdickens.me/2016/04/17/preventing_human_extinction,_now_with_numbers!/ | J7: Color guide | L7: Basic facts
A8: stay on earth | B8: 0.2 | C8: we reduce WAS on balance | D8: 0.7 | E8: WAS = wild animal suffering | J8: final result | L8: factory farmed animals | M8: 20000000000
A9: fill universe with biology | B9: 0.4 | C9: society doesn't care about animals | D9: 0.8 | E9: we have factory farming | F9: 0.3 | J9: intermediate result | L9: interest rate | M9: 0.05
D10: not mutually exclusive so don't need to sum to 1 | E10: we spread WAS | F10: 0.4 | J10: utility estimate
E11: we make suffering simulations | F11: 0.3 | J11: needs manual re-calculation
A12: fill universe with computers | B12: 0.4 | C12: hedonium | D12: 0.05 | E12: maximally happy beings | J12: ignore these (no color)
C13: ems | D13: 0.3 | E13: computer emulations of human-like brains | J13: user input
C14: paperclip | D14: 0.64 | E14: computers that don't do anything useful | J14: user input
C15: dolorium | D15: 0.01 | E15: maximally unhappy beings | J15: user input
D16: should sum to 1
A18: Utility for different types of beings | D18: Note: All CI's here have zero variance because individual well-being shouldn't factor in to prior estimates of good done.
B19: Well-being, absolute value (80% CI) | D19: Sentience adjustment (80% CI)
B20: Low CI | C20: High CI | D20: Low CI | E20: High CI | F20: Sign | G20: Mu1 | H20: Sigma^2_1 | I20: Mu2 | J20: Sigma^2_2 | K20: Mu | L20: Sigma^2 | M20: Notes
A21: utility per wealthy human | B21: 1 | C21: =B21 -> 1 | D21: 1 | E21: 1 | F21: 1 | G21: =GEOMEAN(B21,C21) -> 1 | H21: =LogVariance(B21,C21) -> 0 | I21: =GEOMEAN(D21,E21) -> 1 | J21: =LogVariance(D21,E21) -> 0 | K21: =G21*I21 -> 1 | L21: =H21+J21 -> 0 | M21: centered around 1 by definition
A22: utility per developing-world human | B22: 0.6 | C22: =B22 -> 0.6 | D22: 1 | E22: 1 | F22: 1 | G22: =GEOMEAN(B22,C22) -> 0.6 | H22: =LogVariance(B22,C22) -> 0 | I22: =GEOMEAN(D22,E22) -> 1 | J22: =LogVariance(D22,E22) -> 0 | K22: =G22*I22 -> 0.6 | L22: =H22+J22 -> 0 | M22: extremely poor people's lives are about half as good as those in the developed world according to world happiness surveys
A23: utility per factory farmed animal | B23: 6 | C23: 6 | D23: 0.3 | E23: =D23 -> 0.3 | F23: -1 | G23: 6 | H23: 0 | I23: 0.3 | J23: 0 | K23: =G23*I23 -> 1.8 | L23: =H23+J23 -> 0 | M23: (1) does not include fish/shellfish; (2) I am willing to trade maybe 5 years normal life vs. 1 year on factory farm, and extremely poor people's lives are about half as good as those in the developed world according to world happiness surveys
A24: utility per cage removed | B24: 1 | C24: 1 | D24: =D23 -> 0.3 | E24: =D24 -> 0.3 | F24: 1 | G24: 1 | H24: 0 | I24: 0.3 | J24: 0 | K24: 0.3 | L24: 0
A25: utility per wild vertebrate | B25: 2 | C25: 2 | D25: 0.2 | E25: 0.2 | F25: -1 | G25: 2 | H25: 0 | I25: 0.2 | J25: 0 | K25: 0.4 | L25: 0
A26: utility per insect | B26: 4 | C26: 4 | D26: 0.01 | E26: 0.01 | F26: -1 | G26: 4 | H26: 0 | I26: 0.01 | J26: 0 | K26: 0.04 | L26: 0
A27: utility per hedonium | B27: 1000 | C27: 1000 | D27: =D22 -> 1 | E27: 1 | F27: 1 | G27: 1000 | H27: 0 | I27: 1 | J27: 0 | K27: 1000 | L27: 0 | M27: for same energy requirements as human brain
A28: utility per em | B28: 1 | C28: 1 | D28: 1 | E28: 1 | F28: 1 | G28: 1 | H28: 0 | I28: 1 | J28: 0 | K28: 1 | L28: 0
A29: utility per paperclip | B29: 0.1 | C29: 0.1 | D29: 1 | E29: 1 | F29: -1 | G29: 0.1 | H29: 0 | I29: 1 | J29: 0 | K29: 0.1 | L29: 0
A30: utility per dolorium | B30: =B27 -> 1000 | C30: =C27 -> 1000 | D30: 1 | E30: 1 | F30: -1 | G30: 1000 | H30: 0 | I30: 1 | J30: 0 | K30: 1000 | L30: 0
A33: Size of far future (80% CI) | J33: Size of far future (mean/variance)
A34: Computronium condition | E34: Biological condition
B35: Low CI | C35: High CI | D35: Notes | F35: Low CI | G35: High CI | H35: Notes | K35: Mu | L35: Sigma^2 (orders of magnitude) | O35: Mu | P35: Sigma^2 (orders of magnitude)
A36: accessible stars | B36: 100000000000 | C36: 100000000000000 | D36: [3] | E36: accessible stars | F36: 10000000000 | G36: 100000000000000 | H36: [3] | J36: =A36 -> accessible stars | K36: =SQRT(B36*C36) -> 3.16227766e+12 | L36: =LogVariance(B36,C36) -> 1.170456219 | N36: =E36 -> accessible stars | O36: =SQRT(F36*G36) -> 1000000000000 | P36: =LogVariance(F36,G36) -> 1.560608292
A37: years of future | B37: 100000000000 | C37: 1000000000000 | D37: [2] | E37: years of future | F37: 100000000000 | G37: 1000000000000 | H37: [2] | J37: =A37 -> years of future | K37: =SQRT(B37*C37) -> 3.16227766e+11 | L37: =LogVariance(B37,C37) -> 0.390152073 | N37: =E37 -> years of future | O37: =SQRT(F37*G37) -> 3.16227766e+11 | P37: =LogVariance(F37,G37) -> 0.390152073
A38: usable wattage | B38: 1e+20 | C38: 1e+25 | D38: [3] | E38: humans per star | F38: 10000000000 | G38: 1000000000000 | J38: usable wattage | K38: 3.16227766e+22 | L38: 1.950760365 | N38: humans per star | O38: 100000000000 | P38: 0.7803041461
A39: brains per watt | B39: 0.1 | C39: 0.1 | D39: [3] | E39: factory farmed animals per star | F39: 10000000000 | G39: 1000000000000 | J39: =A39 -> brains per watt | K39: 0.1 | L39: 0 | N39: factory farmed animals per star | O39: 100000000000 | P39: 0.7803041461
E40: wild vertebrates per star | F40: 10000000000000 | G40: 1e+16 | H40: [1]; assumes 1-10 planets per star | N40: wild vertebrates per star | O40: 3.16227766e+14 | P40: 1.170456219
E41: insects per star | F41: 1e+17 | G41: 1e+21 | H41: [1] | N41: insects per star | O41: 1e+19 | P41: 1.560608292
E42: simulations per insect | F42: 0.001 | G42: 1 | N42: =E42 -> simulations per insect | O42: =SQRT(F42*G42) -> 0.0316227766 | P42: 1.170456219
A45: Sources
A46: 1 | B46: Tomasik, "How Many Wild Animals Are There?" | C46: http://reducing-suffering.org/how-many-wild-animals-are-there/
A47: 2 | B47: Wikipedia, "Timeline of the Far Future" | C47: https://en.wikipedia.org/wiki/Timeline_of_the_far_future
A48: 3 | B48: Bradbury, "Matrioshka Brains" | C48: https://www.gwern.net/docs/1999-bradbury-matrioshkabrains.pdf

Sheet EV of Far Future
A1: Computronium Condition | F1: Biological Condition | K1: Results | L1: TODO: this manually categorizes conditions as positive or negative, that should happen automatically
B2: Mu | C2: Sigma^2 (orders of magnitude) | D2: Notes | G2: Mu | H2: Sigma^2 (orders of magnitude) | I2: Notes | L2: P-weighted utility estimate (adj. by probability) | M2: Sigma^2 | O2: Probability (used in P-weighted utility estimate)
A3: accessible stars | B3: =VLOOKUP($A3,Globals!$J$36:$L$40,2,FALSE) -> 3.16227766e+12 | C3: =VLOOKUP($A3,Globals!$J$36:$L$40,3,FALSE) -> 1.170456219 | F3: accessible stars | G3: =VLOOKUP($F3,Globals!$N$36:$P$42,2,FALSE) -> 1000000000000 | H3: =VLOOKUP($F3,Globals!$N$36:$P$42,3,FALSE) -> 1.560608292 | K3: human weighted utility | L3: =G10*O3 -> 1.264911064e+34 | M3: =H10 -> 2.731064511 | N3: P(humans exist) | O3: =p_biological -> 0.4
A4: years of future | B4: =VLOOKUP($A4,Globals!$J$36:$L$40,2,FALSE) -> 3.16227766e+11 | C4: =VLOOKUP($A4,Globals!$J$36:$L$40,3,FALSE) -> 0.390152073 | F4: years of future | G4: =VLOOKUP($F4,Globals!$N$36:$P$42,2,FALSE) -> 3.16227766e+11 | H4: =VLOOKUP($F4,Globals!$N$36:$P$42,3,FALSE) -> 0.390152073 | K4: hedonium weighted utility | L4: =B11*O4 -> 6.32455532e+46 | M4: =C11 -> 3.511368657 | N4: P(hedonium exists) | O4: =p_computronium*p_hedonium -> 0.02
A5: usable wattage | B5: =VLOOKUP($A5,Globals!$J$36:$L$40,2,FALSE) -> 3.16227766e+22 | C5: =VLOOKUP($A5,Globals!$J$36:$L$40,3,FALSE) -> 1.950760365 | K5: em weighted utility | L5: =B16*O5 -> 3.794733192e+44 | M5: =C16 -> 3.511368657 | N5: P(ems exist) | O5: =p_computronium*p_ems -> 0.12
A6: brains per watt | B6: =VLOOKUP($A6,Globals!$J$36:$L$40,2,FALSE) -> 0.1 | C6: =VLOOKUP($A6,Globals!$J$36:$L$40,3,FALSE) -> 0 | K6: pos EV (buckets) | L6: =WriteArray(SumLognormDists(L3:M5)) ->  | M6: buckets
F7: Human utility | K7: pos exp mean/variance | L7: =STupidExcelMean(L6) -> 7.062025699e+50 | M7: =STupidExcelVariance(L6,L7) -> 5.959747492e+109 | N7: Warning: takes a long time to evaluate (30 seconds on my machine)
F8: humans per star | G8: =VLOOKUP($F8,Globals!$N$36:$P$42,2,FALSE) -> 100000000000 | H8: =VLOOKUP($F8,Globals!$N$36:$P$42,3,FALSE) -> 0.7803041461
A9: Hedonium utility | F9: utility per wealthy human | G9: =VLOOKUP(F9,Globals!$A$21:$L$30,11,FALSE) -> 1 | H9: =VLOOKUP(F9,Globals!$A$21:$L$30,12,FALSE) -> 0 | I9: assumes there will be no poverty in the far future | K9: factory farming weighted utility | L9: =G16*O9 -> 5.464415797e+33 | M9: =H16 -> 2.731064511 | N9: P(factory farming exists) | O9: =p_biological*p_not_care_about_animals*p_factory_farming -> 0.096
A10: utility per hedonium | B10: =VLOOKUP(A10,Globals!$A$21:$L$30,11,FALSE) -> 1000 | C10: =VLOOKUP(A10,Globals!$A$21:$L$30,12,FALSE) -> 0 | F10: utility estimate | G10: =PRODUCT(G$3:G$4)*PRODUCT(G8:G9) -> 3.16227766e+34 | H10: =SUM(H$3:H$4)+SUM(H8:H9) -> 2.731064511 | K10: wild vertebrate weighted utility | L10: =G22*O10 -> 5.12e+36 | M10: =H22 -> 3.121216584 | N10: P(wild vertebrates exist) | O10: =p_biological*p_not_care_about_animals*p_spread_was -> 0.128
A11: utility estimate | B11: =PRODUCT($B$3:$B$6)*B10 -> 3.16227766e+48 | C11: =SUM(C$3:C$6)+C10 -> 3.511368657 | K11: insect weighted utility | L11: =G28*O11 -> 1.619086162e+40 | M11: =H28 -> 3.511368657 | N11: P(insects exist) | O11: =p_biological*p_not_care_about_animals*p_spread_was -> 0.128
K12: simulation weighted utility | L12: =G35*O12 -> 3.84e+38 | M12: =H35 -> 4.681824876 | N12: P(simulations exist) | O12: =p_biological*p_not_care_about_animals*p_suffering_simulations -> 0.096
F13: Factory farming neg utility | K13: paperclip weighted utility | L13: =B21*O13 -> 8.09543081e+43 | M13: =C21 -> 3.511368657 | N13: P(paperclips exist) | O13: =p_computronium*p_paperclip -> 0.256
A14: Em utility | F14: factory farmed animals per star | G14: =VLOOKUP($F14,Globals!$N$36:$P$42,2,FALSE) -> 100000000000 | H14: =VLOOKUP($F14,Globals!$N$36:$P$42,3,FALSE) -> 0.7803041461 | K14: dolorium weighted utility | L14: =B26*O14 -> 1.264911064e+46 | M14: =C26 -> 3.511368657 | N14: P(dolorium exists) | O14: =p_computronium*p_dolorium -> 0.004
A15: utility per em | B15: =VLOOKUP(A15,Globals!$A$21:$L$30,11,FALSE) -> 1 | C15: =VLOOKUP(A15,Globals!$A$21:$L$30,12,FALSE) -> 0 | F15: utility per factory farmed animal | G15: =VLOOKUP(F15,Globals!$A$21:$L$30,11,FALSE) -> 1.8 | H15: =VLOOKUP(F15,Globals!$A$21:$L$30,12,FALSE) -> 0 | K15: neg EV (buckets) | L15: =WriteArray(SumLognormDists(L9:M14)) -> 0,0,0,0,0,0,0,0,0,0,0,0,0,0,0,0,0,0,0,0,0,0,0,0,0,0,0,0,0,0,0,0,0,0,0,0,0,0,0,0,0,0,0,0,0,0,0,0,0,0,0,0,0,0,0,0,0,0,0,0,0,0,0,0,0,0,0,0,0,0,0,0,0,0,0,0,0,0,0,0,0,0,0,0,0,0,0,0,0,0,0,0,0,0,0,0,0,0,0,0,0,0,0,0,0,0,0,0,0,0,0,0,0,0,0,0,0,0,0,0,0,0,0,0,0,0,0,0,0,0,0,0,0,0,0,0,0,0,0,0,0,0,0,0,0,0,0,0,0,0,0,0,0,0,0,0,0,0,0,0,0,0,0,0,0,0,0,0,0,0,0,0,0,0,0,0,0,0,0,0,0,0,0,0,0,0,0,0,0,0,0,0,0,0,0,0,0,0,0,0,0,0,0,0,0,0,0,0,0,0,0,0,0,0,0,0,0,0,0,0,0,0,0,0,0,0,0,0,0,0,0,0,0,0,0,0,0,0,0,0,0,0,0,0,0,0,0,0,0,0,0,0,0,0,0,0,0,0,0,0,0,0,0,0,0,0,0,0,0,0,0,0,0,0,0,0,0,0,0,0,0,0,0,0,0,0,0,0,0,0,0,0,0,0,0,0,0,0,0,0,0,0,0,0,0,0,0,0,0,0,0,0,0,0,0,0,0,0,0,0,0,0,0,0,0,0,0,9.88131291682493E-324,1.65511991356818E-321,1.50823419705957E-319,1.35353186796812E-317,1.19492797164064E-315,1.037740102434E-313,8.86562697587412E-312,7.45082692682814E-310,6.15990267145451E-308,5.00976976516223E-306,4.00808033345294E-304,3.15449608618438E-302,2.44229819295948E-300,1.86012744042723E-298,1.39367729648458E-296,1.02720580706597E-294,7.4478105982605E-293,5.31221817479397E-291,3.7273443024277E-289,2.57276225907731E-287,1.74693420845892E-285,1.16689130409608E-283,7.66763505243298E-282,4.95644006577536E-280,3.15178001986759E-278,1.97160437737588E-276,1.21328187737312E-274,7.3448331760612E-273,4.37401914498721E-271,2.5624663643545E-269,1.47677609015906E-267,8.37240741039476E-266,4.66944771488883E-264,2.56188944965233E-262,1.38272305385877E-260,7.34159158398051E-259,3.83464961613669E-257,1.97034309785416E-255,9.95953326454189E-254,4.95241848280898E-252,2.42257464454181E-250,1.16578576330976E-248,5.51877063112748E-247,2.57008940260374E-245,1.17743429669497E-243,5.30649765090505E-242,2.35267748332504E-240,1.02612490032202E-238,4.402726996298E-237,1.85834900243192E-235,7.7164418772857E-234,3.15203831235778E-232,1.26663293769558E-230,5.00720377102881E-229,1.94726592283171E-227,7.44973950131394E-226,2.80377432180676E-224,1.03808158852786E-222,3.7810003510846E-221,1.35478092554428E-219,4.77550046523447E-218,1.65598543636278E-216,5.64913928014286E-215,1.89581759470971E-213,6.25892386460975E-212,2.03278758208499E-210,6.49492147263336E-209,2.04148293686405E-207,6.31259493467192E-206,1.92026332903353E-204,5.74651753840132E-203,1.69176547221798E-201,4.8996769376538E-200,1.39600509486552E-198,3.91290439871028E-197,1.07895805157138E-195,2.92686971717218E-194,7.81081146984214E-193,2.05061100519366E-191,5.29621021284006E-190,1.3456818396191E-188,3.36368459362755E-187,8.27150041611796E-186,2.00101316522132E-184,4.76225545851518E-183,1.11499521112169E-181,2.56821497719651E-180,5.81953520107089E-179,1.29731153571805E-177,2.84511500321573E-176,6.13840382697608E-175,1.30290183935935E-173,2.72062750959737E-172,5.58892348629727E-171,1.12950845816371E-169,2.24570971512961E-168,4.3925946392946E-167,8.45264437527745E-166,1.60017919720911E-164,2.98023010277142E-163,5.4605544322807E-162,9.84305866576785E-161,1.74554250974853E-159,3.04535870492488E-158,5.22702772894423E-157,8.82632971740026E-156,1.46627410161497E-154,2.39640682322359E-153,3.85315964884546E-152,6.09516197175173E-151,9.48562653485482E-150,1.45231245504074E-148,2.18760109213211E-147,3.24183573554685E-146,4.72638910757842E-145,6.77929197603103E-144,9.56657375790044E-143,1.32814828491641E-141,1.81407658178692E-140,2.43772352486653E-139,3.22280440336333E-138,4.19184314161784E-137,5.36412138946361E-136,6.75329335404305E-135,8.36482848861303E-134,1.01935124436574E-132,1.2221290584028E-131,1.44157653946909E-130,1.67296483491657E-129,1.91014115139938E-128,2.14572838513798E-127,2.37145991095451E-126,2.57863413681019E-125,2.75865719825042E-124,2.90362822998763E-123,3.00691236562936E-122,3.06364380645108E-121,3.0711058795133E-120,3.02894674184177E-119,2.93920687608649E-118,2.80615538618953E-117,2.6359533808336E-116,2.43618139916839E-115,2.21528131257443E-114,1.98196973821585E-113,1.74467917410341E-112,1.51107543199948E-111,1.28768711199504E-110,1.07966707770943E-109,8.90689606549043E-109,7.22972340093838E-108,5.77401027367619E-107,4.53728274281573E-106,3.50815240818241E-105,2.66886943427088E-104,1.99776531889844E-103,1.4714039997016E-102,1.06633048905054E-101,7.60372362183646E-101,5.3350396273841E-100,3.68322372528973e-99,2.5020733059201e-98,1.67246048046668e-97,1.10001371061638e-96,7.11916892312491e-96,4.53369296868987e-95,2.84098696211688e-94,1.75179589617764e-93,1.06291315587697e-92,6.34621887799314e-92,3.72853617027447e-91,2.1556134351234e-90,1.22635403965311e-89,6.86557113056291e-89,3.78230686014733e-88,2.05049969140282e-87,1.09392917024057e-86,5.74313537356125e-86,2.96717520357736e-85,1.50860546930118e-84,7.54832707843055e-84,3.71682937933672e-83,1.80113350603389e-82,8.58964441416351e-82,4.03148696621056e-81,1.86217755448897e-80,8.46540616226473e-80,3.78748314214068e-79,1.66776675340499e-78,7.22781960891906e-78,3.08299333418392e-77,1.29430689755074e-76,5.34820047102015e-76,2.17515589097791e-75,8.70747431962979e-75,3.43099575653056e-74,1.3307045651014e-73,5.08023963081128e-73,1.90913095912232e-72,7.06227132955703e-72,2.57169068802344e-71,9.21865464872698e-71,3.25311941351838e-70,1.13012279286103e-69,3.86504296375778e-69,1.30135673161219e-68,4.31382409539761e-68,1.40787352400949e-67,4.52388484835887e-67,1.43125870173635e-66,4.45857342813485e-66,1.36759617326848e-65,4.13064150805428e-65,1.22853872925871e-64,3.5982101580739e-64,1.03782879490963e-63,2.94796432562122e-63,8.24693321197427e-63,2.2722366553097e-62,6.1662799559665e-62,1.64823818972783e-61,4.33973245186951e-61,1.12556901747132e-60,2.87586313046717e-60,7.23890238233208e-60,1.79517994984605e-59,4.38628858412282e-59,1.05600118475275e-58,2.5051546141272e-58,5.85643638220294e-58,1.34923579127944e-57,3.06355376413362e-57,6.85606684677764e-57,1.51239795267574e-56,3.28873747457364e-56,7.05011151849026e-56,1.49004355210164e-55,3.10507184474886e-55,6.38040943087489e-55,1.29290048075139e-54,2.5837928638239e-54,5.09288257259189e-54,9.90196134967001e-54,1.89919468647121e-53,3.59375431321573e-53,6.70963139741089e-53,1.23612340824631e-52,2.24739862636148e-52,4.03270442438352e-52,7.14256453295333e-52,1.24881328775169e-51,2.1556138264044e-51,3.67383387072333e-51,6.18284759377503e-51,1.02759913905644e-50,1.68682889823192e-50,2.73512131312173e-50,4.3811357782151e-50,6.93342441171432e-50,1.08419214746048e-49,1.67536171341728e-49,2.55859297789649e-49,3.86216199448427e-49,5.76292187041693e-49,8.50127656274902e-49,1.23994043502817e-48,1.78829331376661e-48,2.55060855743029e-48,3.59800510995367e-48,5.02040003317343e-48,6.92977379112567e-48,9.46345057940091e-48,1.27871924271677e-47,1.70978529165571e-47,2.26252879123119e-47,2.96331825078647e-47,3.84184319167631e-47,4.93087157654945e-47,6.26579360111279e-47,7.88392528902199e-47,9.82355530096574e-47,1.21227318035919e-46,1.48178027050657e-46,1.79417412439985e-46,2.1522308657236e-46,2.55801249975878e-46,3.0126736482771e-46,3.51627813356836e-46,4.06763643337035e-46,4.66417519043196e-46,5.3018493698556e-46,5.97510628107097e-46,6.67690854974914e-46,7.39882033449752e-46,8.13115779176802e-46,8.86320120920745e-46,9.58346259696295e-46,1.02799991076074e-45,1.0940759700715e-45,1.15539502009831e-45,1.21084004937269e-45,1.25939171690366e-45,1.30016055027377e-45,1.33241462089734e-45,1.3556014803858e-45,1.36936345085569e-45,1.37354571734725e-45,1.36819704762249e-45,1.35356333818942e-45,1.33007453158722e-45,1.2983257481195e-45,1.25905370933379e-45,1.21310969017339e-45,1.16143031738202e-45,1.10500753473865e-45,1.04485898754583e-45,9.8199995020246e-46,9.17417745348572e-46,8.52049396301154e-46,7.86763031954924e-46,7.22343339794679e-46,6.59481151139028e-46,5.98767053697527e-46,5.40688767578459e-46,4.85631896646001e-46,4.33883579354306e-46,3.85638511125577e-46,3.41006791183479e-46,3.00023056185447e-46,2.62656395744339e-46,2.28820595282195e-46,1.98384313923644e-46,1.71180873999706e-46,1.47017409521155e-46,1.25683189825571e-46,1.06956998512591e-46,9.06135046425247e-47,7.64286116844453e-47,6.41838092763753e-47,5.36695835083773e-47,4.46879636234368e-47,3.70542975427621e-47,3.05983564612214e-47,2.51648710294806e-47,2.06135994666341e-47,1.68190224110226e-47,1.36697514073344e-47,1.10677285151023e-47,8.92728434244688e-48,7.17411145559834e-48,5.74420005122815e-48,4.58277334307499e-48,3.64325153547408e-48,2.88626566984883e-48,2.2787360954428e-48,1.79302483216832e-48,1.40616661631845e-48,1.09917987262285e-48,8.56456142480168e-49,6.65224511537132e-49,5.15086210564976e-49,3.97613705020561e-49,3.06008140776757e-49,2.34808885710729e-49,1.79649019531083e-49,1.37050909302275e-49,1.04256408878406e-49,7.90866909520521e-50,5.98272245354776e-50,4.51339209638391e-50,3.39569679139695e-50,2.54793396355429e-50,1.90674037869002e-50,1.42314361065452e-50,1.05942018007638e-50,7.86606736665036e-51,5.82537051861183e-51,4.30300186715018e-51,3.17034351102711e-51,2.32987050360864e-51,1.7078550186482e-51,1.24872360572322e-51,9.10708579119571e-52,6.62508405054541e-52,4.80731682069634e-52,3.4794734765112e-52,2.5120216035903e-52,1.80897063652924e-52,1.29938219589017e-52,9.30975451332952e-53,6.65325133272435e-53,4.74266335768158e-53,3.37210810039349e-53,2.39149540619577e-53,1.69170436788863e-53,1.19361478877042e-53,8.40014221815481e-54,5.89643811245252e-54,4.12830199408646e-54,2.88290126855457e-54,2.00799537130841e-54,1.39498122579745e-54,9.66595764084036e-55,6.68021595848024e-55,4.604722899252e-55,3.16579106218247e-55,2.17082687476097e-55,1.48467310510464e-55,1.01273961230279e-55,6.89008729046033e-56,4.67530943348211e-56,3.16412412664788e-56,2.13576298805269e-56,1.43783128815562e-56,9.65421871963898e-57,6.46516667466727e-57,4.31812111629817e-57,2.87648147240584e-57,1.91108157821098e-57,1.26633035414806e-57,8.36882064428041e-58,5.51607679791252e-58,3.62613972824275e-58,2.37742254654325e-58,1.55458791902506e-58,1.01384312293129e-58,6.59435482539672e-59,4.27779032849409e-59,2.76765456111727e-59,1.78586687299427e-59,1.14929287076103e-59,7.37660324041671e-60,4.72199895448178e-60,3.01466310068647e-60,1.91952966072805e-60,1.21897201773223e-60,7.72031911461321e-61,4.87662240587363e-61,3.07216925719092e-61,1.93024778449037e-61,1.20954685543272e-61,7.55916541366259e-62,4.71157748999171e-62,2.92886931687301e-62,1.81582778358825e-62,1.12276838386784e-62,6.92383015730314e-63,4.25836826552534e-63,2.61204395481222e-63,1.59793121234812e-63,9.74935539611566e-64,5.9324466656801e-64,3.60024289461133e-64,2.17906250237914e-64,1.31536842036685e-64,7.91890057659521e-65,4.75468825790409e-65,2.84720547165048e-65,1.70041570507875e-65,1.01281675283542e-65,6.01652956471496e-66,3.56451614718679e-66,2.10617481853552e-66,1.24115920653049e-66,7.29457123311242e-67,4.27573913194648e-67,2.49954950859834e-67,1.45730802968624e-67,8.47383506558494e-68,4.91414146195679e-68,2.84219759234696e-68,1.63945618388358e-68,9.4315759343041e-69,5.41137453592469e-69,3.09649064401741e-69,1.76713926319603e-69,1.00579757257276e-69,5.70938290886179e-70,3.23226171562441e-70,1.82499889858748e-70,1.02767884761754e-70,5.77152968963238e-71,3.23268315173272e-71,1.80581817395239e-71,1.0060592513199e-71,5.5899991884647e-72,3.09769435472821e-72,1.71200096624073e-72,9.43643726718178e-73,5.18741159724367e-73,2.84401544198527e-73,1.55507654929922e-73,8.48027949533331e-74,4.61218929490431e-74,2.50174267268187e-74,1.35337047524771e-74,7.30178936273237e-75,3.92898560985896e-75,2.10848300382825e-75,1.12849150447834e-75,6.02372311406594e-76,3.20678778237335e-76,1.70260516811228e-76,9.01563202242219e-77,4.76120527867679e-77,2.5077031773754e-77,1.31726710010115e-77,6.90096853788617e-78,3.60565968386849e-78,1.87887505891265e-78,9.76448959483043e-79,5.06103881103171e-79,2.61618385461762e-79,1.34876200948342e-79,6.9349104282508e-80,3.55618915397108e-80,1.81872616013915e-80,9.27658729666981e-81,4.71897436177023e-81,2.39411748196607e-81,1.21138378033639e-81,6.11302970157527e-82,3.07659061490788e-82,1.54426336273928e-82,7.73056927067995e-83,3.85957988024093e-83,1.92179491564826e-83,9.54360583120069e-84,4.7266820998711e-84,2.33474116166709e-84,1.1501633656475e-84,5.65091487275559e-85,2.76895847263659e-85,1.35317062769515e-85,6.59518714756921e-86,3.20582732434891e-86,1.55414511990386e-86,7.5141775333282e-87,3.62334571611346e-87,1.74251503569724e-87,8.35760291330396e-88,3.99783963926801e-88,1.90724921075062e-88,9.07460969673846e-89,4.30612767704121e-89,2.03790664978045e-89,9.61878253668628e-90,4.52787429876643e-90,2.12572486356784e-90,9.9530956569926e-91,4.64780328373911e-91,2.16459042684782e-91,1.00540759729153e-91,4.65743739550788e-92,2.15174262448922e-92,9.91452823204439e-93,4.55608919816929e-93,2.08809770259286e-93,9.54438272958492e-94,4.35094215894439e-94,1.9781408263607e-94,8.96952687617403e-95,4.05620874728492e-95,1.82940344039414e-95,8.22881157815098e-96,3.69150258460062e-96,1.65161062376602e-96,7.36971326022811e-97,3.27968358093441e-97,1.45563246273934e-97,6.44332371491434e-98,2.84450434376879e-98,1.25239603283605e-98,5.4993985747847e-99,2.40839181087256e-99,1.05190741944866e-99,4.58211860342757E-100,1.99064384562706E-100,8.62500262921091E-101,3.72703385709637E-101,1.60622311335671E-101,6.90377828120965E-102,2.95941745304987E-102,1.26521419908874E-102,5.39461325063261E-103,2.29400839780961E-103,9.72899820011537E-104,4.1150931806502E-104,1.73591979386455E-104,7.30328195734058E-105,3.06439617205338E-105,1.2823606573802E-105,5.35197271446333E-106,2.22769652121572E-106,9.24776091968882E-107,3.82873749314897E-107,1.58093137904782E-107,6.51041808402317E-108,2.6738877331265E-108,1.09525662697993E-108,4.47431999810345E-109,1.82295783407571E-109,7.40738019867283E-110,3.00186446547294E-110,1.21326579589549E-110,4.89056752047E-111,1.96607913817178E-111,7.8828118602519E-112,3.15209834081745E-112,1.2570622543008E-112,4.99979553532339E-113,1.98328959471816E-113,7.8461833581714E-114,3.09577367735465E-114,1.21819940789166E-114,4.78085966210037E-115,1.87125096641196E-115,7.30460120079035E-116,2.84380238196254E-116,1.10418221460384E-116,4.27583080737686E-117,1.65134838916452E-117,6.36055969375618E-118,2.44337648031421E-118,9.36103514889777E-119,3.57680936017663E-119,1.36303228077409E-119,5.18030010443528E-120,1.96355074356969E-120,7.42280016701417E-121,2.79854206469979E-121,1.05228732678257E-121,3.94616528252262E-122,1.47589218604684E-122,5.50519144071101E-123,2.04799385445349E-123,7.59842012954433E-124,2.81161846599653E-124,1.03759507522691E-124,3.81889613824005E-125,1.40180054019284E-125,5.13183907745407E-126,1.87369227584726E-126,6.82278889628745E-127,2.47778735403617E-127,8.97438218887091E-128,3.24177986085477E-128,1.1678872297442E-128,4.19620531927502E-129,1.50366461842086E-129,5.37382676647001E-130,1.91537923174422E-130,6.80870184270753E-131,2.41386117538586E-131,8.53490503319149E-132,3.0097022104543E-132,1.05849007912868E-132,3.71268827987152E-133,1.29875912764948E-133,4.53113674626573E-134,1.57660956080002E-134,5.47116198578802E-135,1.89353536665099E-135,6.53590452551851E-136,2.24996834744931E-136,7.72476983202389E-137,2.64504532278059E-137,9.03273186867817E-138,3.07640529216774E-138,1.04497622939744E-138,3.54003620453196E-139,1.19604474260668E-139,4.0301905437806E-140,1.35438508808398E-140, | M15: buckets
A16: utility estimate | B16: =PRODUCT($B$3:$B$6)*B15 -> 3.16227766e+45 | C16: =SUM(C$3:C$6)+C15 -> 3.511368657 | F16: utility estimate | G16: =PRODUCT(G$3:G$4)*PRODUCT(G14:G15) -> 5.692099788e+34 | H16: =SUM(H$3:H$4)+SUM(H14:H15) -> 2.731064511 | K16: neg exp mean/variance | L16: =STupidExcelMean(L15) -> 1.421785891e+50 | M16: =STupidExcelVariance(L15,L16) -> 2.398788675e+108 | N16: Warning: takes a long time to evaluate (30 seconds on my machine)
K18: exp mean/variance | L18: =L7-L16 -> 5.640239808e+50 | M18: =DifferenceVariance(L7:M7,L16:M16) -> 6.19962636e+109
A19: Paperclip neg utility | F19: Wild vertebrate neg utility | K19: EV far future | L19: =EXP(MuFromParams(L18,M18)) -> 4.040288521e+46 | M19: =(SigmaFromParams(L18,M18) / LN(10))^2 -> 3.600201532
A20: utility per paperclip | B20: =VLOOKUP(A20,Globals!$A$21:$L$30,11,FALSE) -> 0.1 | C20: =VLOOKUP(A20,Globals!$A$21:$L$30,12,FALSE) -> 0 | F20: wild vertebrates per star | G20: =VLOOKUP($F20,Globals!$N$36:$P$42,2,FALSE) -> 3.16227766e+14 | H20: =VLOOKUP($F20,Globals!$N$36:$P$42,3,FALSE) -> 1.170456219
A21: utility estimate | B21: =PRODUCT($B$3:$B$6)*B20 -> 3.16227766e+44 | C21: =SUM(C$3:C$6)+C20 -> 3.511368657 | F21: utility per wild vertebrate | G21: =VLOOKUP(F21,Globals!$A$21:$L$30,11,FALSE) -> 0.4 | H21: =VLOOKUP(F21,Globals!$A$21:$L$30,12,FALSE) -> 0
F22: utility estimate | G22: =PRODUCT(G$3:G$4)*PRODUCT(G20:G21) -> 4e+37 | H22: =SUM(H$3:H$4)+SUM(H20:H21) -> 3.121216584
A24: Dolorium neg utility
A25: utility per dolorium | B25: =VLOOKUP(A25,Globals!$A$21:$L$30,11,FALSE) -> 1000 | C25: =VLOOKUP(A25,Globals!$A$21:$L$30,12,FALSE) -> 0 | F25: Insect neg utility
A26: utility estimate | B26: =PRODUCT($B$3:$B$6)*B25 -> 3.16227766e+48 | C26: =SUM(C$3:C$6)+C25 -> 3.511368657 | F26: insects per star | G26: =VLOOKUP($F26,Globals!$N$36:$P$42,2,FALSE) -> 1e+19 | H26: =VLOOKUP($F26,Globals!$N$36:$P$42,3,FALSE) -> 1.560608292
F27: utility per insect | G27: =VLOOKUP(F27,Globals!$A$21:$L$30,11,FALSE) -> 0.04 | H27: =VLOOKUP(F27,Globals!$A$21:$L$30,12,FALSE) -> 0
F28: utility estimate | G28: =PRODUCT(G$3:G$4)*PRODUCT(G26:G27) -> 1.264911064e+41 | H28: =SUM(H$3:H$4)+SUM(H26:H27) -> 3.511368657
F31: Simulation neg utility
F32: insects per star | G32: =VLOOKUP($F32,Globals!$N$36:$P$42,2,FALSE) -> 1e+19 | H32: =VLOOKUP($F32,Globals!$N$36:$P$42,3,FALSE) -> 1.560608292
F33: simulations per insect | G33: =VLOOKUP($F33,Globals!$N$36:$P$42,2,FALSE) -> 0.0316227766 | H33: =VLOOKUP($F33,Globals!$N$36:$P$42,3,FALSE) -> 1.170456219
F34: utility per insect | G34: =VLOOKUP(F34,Globals!$A$21:$L$30,11,FALSE) -> 0.04 | H34: =VLOOKUP(F34,Globals!$A$21:$L$30,12,FALSE) -> 0
F35: utility estimate | G35: =PRODUCT(G$3:G$4)*PRODUCT(G32:G34) -> 4e+39 | H35: =SUM(H$3:H$4)+SUM(H32:H34) -> 4.681824876

Sheet GiveDirectly
A1: Inputs (80% CI) | F1: Direct effect
B2: Low CI | C2: High CI | D2: Notes | G2: Mu | H2: Sigma^2 (orders of magnitude) | I2: Sigma
A3: cost per year to end poverty ($) | B3: 50000000000 | C3: 2000000000000 | D3: from looking at random articles I found on Google, combined with Fermi estimate (1.2B people, $1/day ~= $500B/yr) | F3: utility estimate | G3: 1 | H3: =I3^2 -> 0.04 | I3: 0.2
A4: P(extinction) | B4: 0.1 | C4: 0.5 | D4: implicitly correlated with P(AI-related extinction) on the AI Safety sheet | F4: Pareto posterior | G4: =ParetoPosterior(median,alpha,G3:H3) -> 0.8583274111
A5: proportion of extinction scenarios averted by ending poverty | B5: 0.005 | C5: 0.2 | F5: Log-normal posterior | G5: =LognormPosterior(mu_global_poverty,sigma_global_poverty,G3:H3) -> disabled
A6: proportion of extinction scenarios caused by ending poverty | B6: =B5*1.01 -> 0.00505 | C6: =C5*1.01 -> 0.202
A7: poverty ended per $1000 | B7: =1000/C3*interest_rate -> 2.5e-11 | C7: =1000/B3*interest_rate -> 1e-09
A8: days factory-farm suffering caused per $1000 | B8: 1.21 | C8: 192 | D8: http://effective-altruism.com/ea/rl/quantifying_the_impact_of_economic_growth_on_meat/ | F8: Extinction risk reduction | K8: Extinction risk increase
A9: years factory-farm suffering per $1000 | B9: =B8/365 -> 0.003315068493 | C9: =C8/365 -> 0.5260273973 | G9: Mu | H9: Sigma^2 | L9: Mu | M9: Sigma^2
F10: P(extinction) | G10: =GEOMEAN($B$4,$C$4) -> 0.2236067977 | H10: =LogVariance($B$4,$C$4) -> 0.2727045962 | K10: P(extinction) | L10: =GEOMEAN($B$4,$C$4) -> 0.2236067977 | M10: =LogVariance($B$4,$C$4) -> 0.2727045962
F11: extinction scenarios averted by ending poverty | G11: =GEOMEAN($B$5,$C$5) -> 0.0316227766 | H11: =LogVariance($B$5,$C$5) -> 0.6250470267 | K11: extinction scenarios caused by ending poverty | L11: =GEOMEAN($B$6,$C$6) -> 0.03193900437 | M11: =LogVariance($B$6,$C$6) -> 0.6250470267
F12: poverty ended per $1000 | G12: =GEOMEAN($B$7,$C$7) -> 1.58113883e-10 | H12: =LogVariance($B$7,$C$7) -> 0.6250470267 | K12: poverty ended per $1000 | L12: =GEOMEAN($B$7,$C$7) -> 1.58113883e-10 | M12: =LogVariance($B$7,$C$7) -> 0.6250470267
F13: EV far future | G13: =VLOOKUP(F13,'EV of Far Future'!$K$18:$M$19,2,FALSE) -> 4.040288521e+46 | H13: =VLOOKUP(F13,'EV of Far Future'!$K$18:$M$19,3,FALSE) -> 3.600201532 | K13: EV far future | L13: =VLOOKUP(K13,'EV of Far Future'!$K$18:$M$19,2,FALSE) -> 4.040288521e+46 | M13: =VLOOKUP(K13,'EV of Far Future'!$K$18:$M$19,3,FALSE) -> 3.600201532
F14: utility estimate | G14: =PRODUCT(G10:G13) -> 4.517179891e+34 | H14: =SUM(H10:H13) -> 5.123000182 | K14: utility estimate | L14: =PRODUCT(L10:L13) -> 4.56235169e+34 | M14: =SUM(M10:M13) -> 5.123000182
F15: pos exp mean/variance | G15: =meanFromParams(G14:H14) -> 3.572229158e+40 | H15: =VarianceFromParams(G14:H14) -> 7.980359797e+92
K17: Factory farming increase
L18: Mu | M18: Sigma^2
K19: years factory-farm suffering per $1000 | L19: =GEOMEAN(B9,C9) -> 0.04175903317 | M19: =LogVariance(B9,C9) -> 0.8585358239
K20: utility per factory farmed animal | L20: =VLOOKUP(K20,Globals!$A$22:$L$30,11,FALSE) -> 1.8 | M20: =VLOOKUP(K20,Globals!$A$22:$L$30,12,FALSE) -> 0
K21: utility estimate | L21: =PRODUCT(L19:L20) -> 0.0751662597 | M21: =SUM(M19:M20) -> 0.8585358239
A22: Results
A23: Total far future effect
A24: overall exp mean/variance | B24: =G15-L28 -> -5.071806918e+38 | C24: =DifferenceVariance(G15:H15,L28:M28) -> 1.61549604e+93 | K24: Utiliy Estimates
A25: overall utility estimate | B25: =EXP(MuFromParams(ABS(B24),C24)) -> 6.399889487e+30 | C25: =(SigmaFromParams(B24,C24) / LN(10))^2 -> 6.860975745 | K25: x-risk | L25: =L14 -> 4.56235169e+34 | M25: =M14 -> 5.123000182
A26: Pareto posterior | B26: =ParetoPosterior(median,alpha,B25:C25)*SIGN(B24) -> -1.02173826e+15 | K26: factory farming | L26: =L21 -> 0.0751662597 | M26: =M21 -> 0.8585358239
A27: Log-normal posterior | B27: =LognormPosterior(mu_far_future,sigma_far_future,B25:C25)*SIGN(B24) -> -7195.123172 | K27: sum (buckets) | L27: =WriteArray(SumLognormDists(L25:M26)) ->  | M27: buckets
K28: neg exp mean/variance | L28: =STupidExcelMean(L27) -> 3.622947228e+40 | M28: =STupidExcelVariance(L27,L28) -> 8.174600601e+92
A30: Total (Pareto) | B30: =B26+G4 -> -1.02173826e+15
A31: Total (log-normal) | B31: =B27+G5 -> 

Sheet THL
A1: Inputs (80% CI) | H1: Direct effect | M1: Far-future effect on suffering simulations
B2: Low CI | C2: High CI | D2: Mu | E2: Sigma^2 | F2: Notes | I2: Mu | J2: Sigma^2 (orders of magnitude) | N2: Mu | O2: Sigma^2
A3: years factory farming prevented per $1 | B3: 0.7 | C3: 13 | F3: Estimated by doubling the 80% CI given by http://www.animalcharityevaluators.org/research/interventions/impact-calculator/. Excludes shellfish. | H3: years factory farming prevented per $1000 | I3: =D4 -> 3016.620626 | J3: =E4 -> 0.495042629 | M3: suffering simulations prevented | N3: =VLOOKUP(M3,$A$18:$E$21,4,FALSE) -> 0.04472135955 | O3: =VLOOKUP(M3,$A$18:$E$21,5,FALSE) -> 0.5075995499
A4: years factory farming prevented per $1000 | B4: =B3*1000 -> 700 | C4: =C3*1000 -> 13000 | D4: =GEOMEAN(B4,C4) -> 3016.620626 | E4: =LogVariance(B4,C4) -> 0.495042629 | H4: utility per factory farmed animal | I4: =VLOOKUP($H4,Globals!$A$22:$L$30,11,FALSE) -> 1.8 | J4: =VLOOKUP($H4,Globals!$A$22:$L$30,12,FALSE) -> 0 | M4: simulation weighted utility | N4: =VLOOKUP($M4,'EV of Far Future'!$K$3:$N$14,2,FALSE) -> 3.84e+38 | O4: =VLOOKUP($M4,'EV of Far Future'!$K$3:$N$14,3,FALSE) -> 4.681824876
H5: utility estimate | I5: =PRODUCT(I3:I4) -> 5429.917126 | J5: =SUM(J3:J4) -> 0.495042629 | M5: 1/memetically relevant humans | N5: =$D$7 -> 7.07e-10 | O5: =$E$7 -> 0.117447477
A6: memetically relevant humans | B6: 1000000000 | C6: 2000000000 | H6: Pareto posterior | I6: =ParetoPosterior(median,alpha,I5:J5) -> 396.4936815 | M6: veg-years permanently created per $1000 | N6: =$D$16 -> 39.69225643 | O6: =$E$16 -> 0.5482413579
A7: 1/memetically relevant humans | B7: 5e-10 | C7: 1e-09 | D7: 7.07e-10 | E7: 0.117447477 | H7: log-normal posterior | I7: =LognormPosterior(mu_factory_farming,sigma_factory_farming,I5:J5) -> 194.8313381 | M7: utility estimate | N7: =PRODUCT(N3:N6) -> 4.819160876e+29 | O7: =SUM(O3:O6) -> 5.855113261
A8: vegetarians per $1000 | B8: 22 | C8: 323 | D8: =GEOMEAN(B8,C8) -> 84.29709366 | E8: =LogVariance(B8,C8) -> 0.4552215739 | F8: Estimated by doubling the 80% CI for online ads from https://docs.google.com/spreadsheets/d/1YSkZDTWacpkmnZMdRsIMLuCOdIILNVmGTIQAomZDxD4
A9: years spent being vegetarian | B9: 5 | C9: 8 | D9: =GEOMEAN(B9,C9) -> 6.32455532 | E9: =LogVariance(B9,C9) -> 0.07963783438 | F9: https://docs.google.com/spreadsheets/d/1YSkZDTWacpkmnZMdRsIMLuCOdIILNVmGTIQAomZDxD4
A10: vegetarian-years per $1000 | D10: =D8*D9 -> 533.1416322 | E10: =E8+E9 -> 0.5348594083 | H10: Far-future effect on factory farming | M10: Far-future effect on hedonium
A11: annual rate at which vegetarians convert new vegetarians | B11: 0.005 | C11: 0.03 | D11: =GEOMEAN(B11,C11) -> 0.01224744871 | E11: =LogVariance(B11,C11) -> 0.3035973235 | I11: Mu | J11: Sigma^2 (orders of magnitude) | M11: hedonium caused | N11: =VLOOKUP(M11,$A$18:$E$21,4,FALSE) -> 0.02236067977 | O11: =VLOOKUP(M11,$A$18:$E$21,5,FALSE) -> 0.2727045962
A12: veg-years directly created per $1000 | D12: =D10*interest_rate -> 26.65708161 | E12: =E10 -> 0.5348594083 | H12: P(stopping this if we stop factory farming) | I12: 1 | J12: 0 | M12: hedonium weighted utility | N12: =VLOOKUP($M12,'EV of Far Future'!$K$3:$N$14,2,FALSE) -> 6.32455532e+46 | O12: =VLOOKUP($M12,'EV of Far Future'!$K$3:$N$14,3,FALSE) -> 3.511368657
A13: veg-years indirectly created per $1000 | D13: =D10*D11 -> 6.529624798 | E13: =E10+E11 -> 0.8384567318 | H13: factory farming weighted utility | I13: =VLOOKUP($H13,'EV of Far Future'!$K$3:$N$14,2,FALSE) -> 5.464415797e+33 | J13: =VLOOKUP($H13,'EV of Far Future'!$K$3:$N$14,3,FALSE) -> 2.731064511 | M13: 1/memetically relevant humans | N13: =$D$7 -> 7.07e-10 | O13: =$E$7 -> 0.117447477
A14: sum (buckets) | D14: =WriteArray(SumLognormDists(D12:E13)) -> 0,0,0,0,3.06801923715307E-261,5.6443364452014E-258,1.98627255916387E-255,8.06574951770373E-253,2.54761723790152E-250,7.67643852316551E-248,2.24349958487824E-245,6.37479281135915E-243,1.75885714105466E-240,4.71506324127615E-238,1.22818291020093E-235,3.10856462034519E-233,7.64501698491128E-231,1.82691716383917E-228,4.24210312498169E-226,9.57118408768777E-224,2.09832288025386E-221,4.4699357664798E-219,9.2523635452938E-217,1.86091552275066E-214,3.63683263952653E-212,6.90625782658705E-210,1.27433966415032E-207,2.28481312890702E-205,3.98051599405265E-203,6.73831636057296E-201,1.10837543492921E-198,1.77151973488533E-196,2.75124232789623E-194,4.15179194314896E-192,6.08788372921227E-190,8.67403743213017E-188,1.20088261147696E-185,1.61549006463453E-183,2.11170208191325E-181,2.68216678167805E-179,3.31027322338929E-177,3.9697850355983E-175,4.62589091305688E-173,5.23780340546667E-171,5.76273401369799E-169,6.16075157797731E-167,6.39977536183978E-165,6.45984126067726E-163,6.33585485246002E-161,6.03830474417456E-159,5.59179768282853E-157,5.03169918212348E-155,4.39951568880174E-153,3.73785321640751E-151,3.08579432846737E-149,2.47536511200169E-147,1.92947567326553E-145,1.46139393862134E-143,1.07553228600378E-141,7.69144544916367E-140,5.34467188316502E-138,3.60880085929667E-136,2.36773878282249E-134,1.50950264803951E-132,9.35111536862839E-131,5.62888819495142E-129,3.29239347290837E-127,1.87124640188173E-125,1.03342889287976E-123,5.54575702476838E-122,2.8918245481378E-120,1.46525818500926E-118,7.21419273223984E-117,3.45138138688312E-115,1.60446428932743E-113,7.24768511684316E-112,3.18127350778246E-110,1.35686115367944E-108,5.6234494931342E-107,2.26466237782643E-105,8.8621215041607E-104,3.36981299074733E-102,1.24511099344741E-100,4.47038379476258e-99,1.55961118311331e-97,5.28716638700852e-96,1.74166669170852e-94,5.57497438550031e-93,1.73403078876364e-91,5.24091568652456e-90,1.53919743611114e-88,4.39256942809096e-87,1.21809299347608e-85,3.28231405048477e-84,8.59444963102491e-83,2.18672739042038e-81,5.40642577397604e-80,1.29886875198775e-78,3.03221591119226e-77,6.87852340559236e-76,1.51625058649453e-74,3.24778925027098e-73,6.75999279048837e-72,1.36724583105619e-70,2.68713460581459e-69,5.13186403212156e-68,9.52366787363917e-67,1.71742273646381e-65,3.00950131009495e-64,5.12456178220923e-63,8.47938422587479e-62,1.36338279412518e-60,2.13018712074868e-59,3.23418383919091e-58,4.77154710915203e-57,6.84072086712228e-56,9.53000769894911e-55,1.29013145137516e-53,1.69716715404043e-52,2.16953093033373e-51,2.69499702386529e-50,3.25313890537096e-49,3.81592185605943e-48,4.34960254405755e-47,4.81785381124657e-46,5.18575897105513e-45,5.42408444744635e-44,5.51311081561394e-43,5.44532673525577e-42,5.22647533079176e-41,4.87475083915624e-40,4.41830137411491e-39,3.89151317364986e-38,3.33075595410755e-37,2.77031508277939e-36,2.23912581522607e-35,1.75869999063253e-34,1.34236290603755e-33,9.95666860080149e-33,7.17670558234215e-32,5.02694630362703e-31,3.42178329979157e-30,2.26345066528174e-29,1.45499334478043e-28,9.08915749646452e-28,5.51772614396129e-27,3.25515615661478e-26,1.86620783933997e-25,1.03974311888483e-24,5.62952013049746e-24,2.96208444261287e-23,1.51462716781386e-22,7.5265831408111e-22,3.63475731204533e-21,1.70584705377166e-20,7.78025120001162e-20,3.44856024309751e-19,1.48550652377042e-18,6.21878886974606e-18,2.53007618195158e-17,1.0003685681134e-16,3.84403503570173e-16,1.43554826517913e-15,5.21019315634517e-15,1.83779863087601e-14,6.3001765855555e-14,2.09904122364826e-13,6.79681641301249e-13,2.13899346002803e-12,6.54238187421833e-12,1.94485922539732e-11,5.61913940035209e-11,1.57791820657266e-10,4.30661558336695e-10,1.14242783773039e-09,2.94555298601027e-09,7.38167449661943e-09,1.79803358429933e-08,4.25697137844028e-08,9.79645995934283e-08,2.19133585151836e-07,4.76459805408731e-07,1.00699604081117e-06,2.0688094626537e-06,4.1315405302157e-06,8.02066582127749e-06,1.51364621039219e-05,2.77691888111815e-05,4.95264130147659e-05,8.58729131604796e-05,0.000144754733052324,0.000237235210643389,0.000378014871544351,0.000585648018558655,0.000882223174013991,0.00129226490208149,0.0018406651058338,0.00254958022480511,0.00343443786971216,0.00449945818506697,0.00573335938792521,0.00710610963546194,0.00856763032464702,0.0100491913334853,0.0114678547669119,0.0127337708473886,0.0137595184921022,0.0144701618762031,0.0148124079524307,0.0147612953485571,0.0143232364627072,0.0135348930122125,0.0124581379203668,0.011172059763995,0.00976343892299796,0.00831727300124054,0.00690874791943493,0.00559761759953781,0.00442539871398709,0.0034152472843233,0.0025739726909893,0.00189542183019224,0.00136443526265066,0.000960697330757891,0.000662009185096059,0.000446741907614749,0.000295425692923546,0.000191571878031454,0.000121900700933509,7.61680294533001e-05,4.67660123097878e-05,2.82339621722162e-05,1.67718069181265e-05,9.80897973594872e-06,5.65142289275539e-06,3.20936764843973e-06,1.79734149285314e-06,9.93112955435601e-07,5.4165076799191e-07,2.91729304702805e-07,1.55225486000173e-07,8.1629791409047e-08,4.2444154853762e-08,2.18299690998173e-08,1.11106185686909e-08,5.59830703429037e-09,2.79375562280687e-09,1.3813546746343e-09,6.76964246796495e-10,3.28934944509704e-10,1.58509130109719e-10,7.57681699323203e-11,3.59306444265345e-11,1.69049705040804e-11,7.89094968952336e-12,3.65405375446428e-12,1.6783851658365e-12,7.64538339699217e-13,3.45304831879897e-13,1.54595498575235e-13,6.85917852898095e-14,3.01521505321419e-14,1.31289018120023e-14,5.66110613108498e-15,2.41681612277945e-15,1.02134124804361e-15,4.27177175118364e-16,1.76802950107879e-16,7.24033654228553e-17,2.93337595474108e-17,1.17564468085433e-17,4.66069118810336e-18,1.8275234525891e-18,7.0874763140497e-19,2.71843102209023e-19,1.03116627322292e-19,3.86822231949338e-20,1.43501887230158e-20,5.26453912064908e-21,1.90991634045432e-21,6.85197093933515e-22,2.43086467651852e-22,8.52801275122506e-23,2.95852306883664e-23,1.0149411503162e-23,3.44306011211738e-24,1.15500936861528e-24,3.83144919335636e-25,1.25683116532847e-25,4.07687000571193e-26,1.30771365643178e-26,4.14795657174619e-27,1.30104225230131e-27,4.03537777978256e-28,1.2376919071616e-28,3.75384582020716e-29,1.12583778038678e-29,3.33895603208012e-30,9.7922178722322e-31,2.83979450983146e-31,8.14382136527779e-32,2.30943123910422e-32,6.47615605599196e-33,1.79582926954845e-33,4.92434255366008e-34,1.33526337464251e-34,3.58031375391857e-35,9.49315794083474e-36,2.48906246290712e-36,6.4535154414642e-37,1.65459756543576e-37,4.19492188042678e-38,1.05169750467825e-38,2.6073136514456e-39,6.3919178215518e-40,1.54954629589373e-40,3.71461149918143e-41,8.80557480061384e-42,2.06413211830882e-42,4.78467828524224e-43,1.09673943909227e-43,2.48593431730376e-44,5.57200256089609e-45,1.23500419914774e-45,2.70683030642726e-46,5.86663536057242e-47,1.25733970454782e-47,2.66472031973618e-48,5.5845232894395e-49,1.15732690208763e-49,2.3717093165855e-50,4.80620554260373e-51,9.63116203422023e-52,1.90849272230888e-52,3.73970888423879e-53,7.24637079749337e-54,1.38847728556825e-54,2.63082811772923e-55,4.92925901613803e-56,9.13284891768544e-57,1.67327135466972e-57,3.03153054501455e-58,5.43116491048148e-59,9.62187034183999e-60,1.68562700372345e-60,2.92010809983612e-61,5.0023243399387e-62,8.4738395071078e-63,1.4194630461787e-63,2.35127494655324e-64,3.85139632059979e-65,6.23833187432827e-66,9.99204102154576e-67,1.58261548481011e-67,2.47874631870314e-68,3.83905401777934e-69,5.87965485215037e-70,8.90461017921295e-71,1.33356276295109e-71,1.97491076743145e-72,2.89212436522555e-73,4.18814703356499e-74,5.99739074421863e-75,8.49255247927349e-76,1.18918549312832e-76,1.64663156049364e-77,2.25464793903299e-78,3.0527870291488e-79,4.08742453855022e-80,5.41175911287264e-81,7.08537165468464e-82,9.17323001096851e-83,1.17440367076927e-83,1.48678436707823e-84,1.86128998776802e-85,2.30417555859483e-86,2.82067181594704e-87,3.41448352699841e-88,4.08726648130368e-89,4.83811686792121e-90,5.66311296876291e-91,6.55495273537664e-92,7.5027309564549e-93,8.49189569234237e-94,9.50441515209876e-95,1.05191734005268e-95,1.15125969245369e-96,1.24594954001261e-97,1.33340806570386e-98,1.41111097858076e-99,1.47670835757863E-100,1.52814218262623E-101,1.56375339128681E-102,1.58237070540459E-103,1.58337459695534E-104,1.56673152080478E-105,1.53299577596187E-106,1.48327885128337E-107,1.41918862023141E-108,1.34274302428592E-109,1.25626470614607E-110,1.16226425607659E-111,1.06332022407683E-112,9.61963814015827E-114,8.60575278802079E-115,7.61297609415209E-116,6.65971332783038E-117,5.7609230360487E-118,4.92792489900048E-119,4.1684208273092E-120,3.48669936694217E-121,2.88398447261396E-122,2.35888518013234E-123,1.90790240382476E-124,1.52595236852549E-125,1.20687216040647E-126,9.43880535204359E-128,7.29975459472205E-129,5.5825800509399E-130,4.22179486857095E-131,3.15714672146476E-132,2.33468273644672E-133,1.70724735244766E-134,1.23452671657188E-135,8.82754636484344E-137,6.24187390088871E-138,4.364409007202E-139,3.01766735853478E-140,2.0632542873822E-141,1.39498525271071E-142,9.32656982077082E-144,6.16608836691817E-145,4.03118762455623E-146,2.60610403724118E-147,1.66604203678909E-148,1.05321159189721E-149,6.58386284194465E-151,4.06987797806888E-152,2.48781150187562E-153,1.50379633959867E-154,8.98868258493497E-156,5.31298432917599E-157,3.10539246227318E-158,1.79485728971954E-159,1.02583809123191E-160,5.79779944404995E-162,3.24028361382299E-163,1.79076389661065E-164,9.78653840411199E-166,5.28877813304395E-167,2.82629221035918E-168,1.49353100829403E-169,7.80453252976682E-171,4.03287736364582E-172,2.06071819375086E-173,1.0412563534315E-174,5.20274083038427E-176,2.57064549729671E-177,1.25599426459081E-178,6.0683216427581E-180,2.89924553317551E-181,1.36973600162462E-182,6.39917834244946E-184,2.95628994552793E-185,1.35053333380974E-186,6.10097237664214E-188,2.72538761847147E-189,1.20390707778841E-190,5.25887836554585E-192,2.27158375105513E-193,9.70286189922358E-195,4.09832519507176E-196,1.71178198294907E-197,7.07010648981293E-199,2.88761260261674E-200,1.16623849150311E-201,4.65769753831647E-203,1.83946133633494E-204,7.18365577856324E-206,2.77418764492523E-207,1.05940403254254E-208,4.00057926224466E-210,1.49389339193568E-211,5.51634985845513E-213,2.01427826931979E-214,7.27315096082313E-216,2.59693575237467E-217,9.16928091401556E-219,3.20143596938999E-220,1.10532458847495E-221,3.77372554371061E-223,1.27404938045621E-224,4.25341422974665E-226,1.40418576975739E-227,4.58402444113226E-229,1.47980588713688E-230,4.72387118275545E-232,1.4911688083639E-233,4.65469302228014E-235,1.43678156626453E-236,4.3855687091518E-238,1.323721311242E-239,3.95096034995977E-241,1.16612270398432E-242,3.403465086213E-244,9.82276644225688E-246,2.80337893123925E-247,7.91161711840878E-249,2.20792433959261E-250,6.09310387207566E-252,1.66275570178795E-253,4.48697633372521E-255,1.19733197666163E-256,3.15944538672465E-258,8.24408751433501E-260,2.12720724361642E-261,5.42765809419663E-263,1.36946403244961E-264,3.41683689412892E-266,8.43011180302544E-268,2.05673287625738E-269,4.96201319862203E-271,1.18378657175565E-272,2.79270056294392E-274,6.51494577051623E-276,1.50290907457339E-277,3.42838887834221E-279,7.73362158312233E-281,1.72508789150097E-282,3.80517824599734E-284,8.29992662094054E-286,1.79023057296029E-287,3.8183800785403E-289,8.05350273800198E-291,1.67967761714034E-292,3.46419657893907E-294,7.06503944887254E-296,1.42482695648977E-297,2.84148340533966E-299,5.60355442316076E-301,1.0927417433158E-302,2.10720574790059E-304,4.0182025046618E-306,7.57691066876184E-308,1.41282373761478E-309,2.60506922528295E-311,4.74991702320774E-313,8.56422852846466E-315,1.52695404794111E-316,2.69214394156312E-318,4.693129569846E-320,7.95445689804407E-322,0,0,0,0,0,0,0,0,0,0,0,0,0,0,0,0,0,0,0,0,0,0,0,0,0,0,0,0,0,0,0,0,0,0,0,0,0,0,0,0,0,0,0,0,0,0,0,0,0,0,0,0,0,0,0,0,0,0,0,0,0,0,0,0,0,0,0,0,0,0,0,0,0,0,0,0,0,0,0,0,0,0,0,0,0,0,0,0,0,0,0,0,0,0,0,0,0,0,0,0,0,0,0,0,0,0,0,0,0,0,0,0,0,0,0,0,0,0,0,0,0,0,0,0,0,0,0,0,0,0,0,0,0,0,0,0,0,0,0,0,0,0,0,0,0,0,0,0,0,0,0,0,0,0,0,0,0,0,0,0,0,0,0,0,0,0,0,0,0,0,0,0,0,0,0,0,0,0,0,0,0,0,0,0,0,0,0,0,0,0,0,0,0,0,0,0,0,0,0,0,0,0,0,0,0,0,0,0,0,0,0,0,0,0,0,0,0,0,0,0,0,0,0,0,0,0,0,0,0,0,0,0,0,0,0,0,0,0,0,0,0,0,0,0,0,0,0,0,0,0,0,0,0,0,0,0,0,0,0,0,0,0,0,0,0,0,0,0,0,0,0,0,0,0,0,0,0,0,0,0,0,0,0,0,0,0,0,0,0,0,0,0,0,0,0,0,0,0,0,0,0,0,0,0,0,0,0,0,0,0,0,0,0,0,0,0,0,0,0,0,0,0,0,0,0,0,0,0,0,0,0,0,0,0,0,0,0,0,0,0,0,0,0,0,0,0,0,0,0,0,0,0,0,0,0,0,0,0,0,0,0,0,0,0,0,0,0,0,0,0,0,0,0,0,0,0,0,0,0,0,0,0,0,0,0,0,0,0,0,0,0,0,0,0,0,0,0,0,0,0,0,0,0,0,0,0,0,0,0,0,0,0,0,0,0,0,0,0,0,0,0,0,0,0,0,0,0,0,0,0,0,0,0,0,0,0,0,0,0,0,0,0,0,0,0,0,0,0,0, | E14: buckets | F14: This is the probability increase of stopping WAS conditional on stopping factory farming. This assumes net effect is positive. You can make it negative but that requires changing the way the posterior is calculated. If you make the low CI close to 0, that has a similar effect to putting some of the probability mass below 0. | H14: 1/memetically relevant humans | I14: =$D$7 -> 7.07e-10 | J14: =$E$7 -> 0.117447477 | M14: veg-years permanently created per $1000 | N14: =$D$16 -> 39.69225643 | O14: =$E$16 -> 0.5482413579
A15: exp mean/variance | D15: =STupidExcelMean(D14) -> 169.7821299 | E15: =STupidExcelVariance(D14,D15) -> 498593.7107 | H15: veg-years permanently created per $1000 | I15: =$D$16 -> 39.69225643 | J15: =$E$16 -> 0.5482413579 | M15: utility estimate | N15: =PRODUCT(N11:N14) -> 3.968626245e+37 | O15: =SUM(O11:O14) -> 4.449762088
A16: veg-years permanently created per $1000 | D16: =EXP(MuFromParams(ABS(D15),E15)) -> 39.69225643 | E16: =(SigmaFromParams(D15,E15) / LN(10))^2 -> 0.5482413579 | H16: utility estimate | I16: =PRODUCT(I12:I15) -> 1.533447601e+26 | J16: =SUM(J12:J15) -> 3.396753346
A18: wild vertebrate suffering prevented if we end factory farming | B18: 0.01 | C18: 0.2 | D18: =GEOMEAN(B18,C18) -> 0.04472135955 | E18: =LogVariance(B18,C18) -> 0.5075995499 | M18: Total positive far-future effect
A19: insect suffering prevented | B19: 0.005 | C19: 0.1 | D19: =GEOMEAN(B19,C19) -> 0.02236067977 | E19: =LogVariance(B19,C19) -> 0.5075995499 | M19: utility estimates | N19: =I16 -> 1.533447601e+26 | O19: =J16 -> 3.396753346
A20: suffering simulations prevented | B20: 0.01 | C20: 0.2 | D20: =GEOMEAN(B20,C20) -> 0.04472135955 | E20: =LogVariance(B20,C20) -> 0.5075995499 | H20: Far-future effect on wild vertebrates | N20: =I26 -> 6.425547835e+27 | O20: =J26 -> 4.294504969
A21: hedonium caused | B21: 0.01 | C21: 0.05 | D21: =GEOMEAN(B21,C21) -> 0.02236067977 | E21: =LogVariance(B21,C21) -> 0.2727045962 | I21: Mu | J21: Sigma^2 | N21: =I35 -> 1.015968319e+31 | O21: =J35 -> 4.684657042
H22: wild vertebrate suffering prevented if we end factory farming | I22: =VLOOKUP(H22,$A$18:$E$21,4,FALSE) -> 0.04472135955 | J22: =VLOOKUP(H22,$A$18:$E$21,5,FALSE) -> 0.5075995499 | N22: =N7 -> 4.819160876e+29 | O22: =O7 -> 5.855113261
H23: wild vertebrate weighted utility | I23: =VLOOKUP($H23,'EV of Far Future'!$K$3:$N$14,2,FALSE) -> 5.12e+36 | J23: =VLOOKUP($H23,'EV of Far Future'!$K$3:$N$14,3,FALSE) -> 3.121216584 | N23: =N15 -> 3.968626245e+37 | O23: =O15 -> 4.449762088
H24: 1/memetically relevant humans | I24: =$D$7 -> 7.07e-10 | J24: =$E$7 -> 0.117447477 | M24: sum (buckets) | N24: =WriteArray(SumLognormDists(N19:O23)) -> disabled | O24: buckets
H25: veg-years permanently created per $1000 | I25: =$D$16 -> 39.69225643 | J25: =$E$16 -> 0.5482413579 | M25: exp mean/variance | N25: =STupidExcelMean(N24) ->  | O25: =STupidExcelVariance(N24,N25) -> 
A26: Results | H26: utility estimate | I26: =PRODUCT(I22:I25) -> 6.425547835e+27 | J26: =SUM(J22:J25) -> 4.294504969
A27: Total far-future effect | B27: Mu | C27: Sigma^2
A28: exp mean/variance | B28: =N25 ->  | C28: =O25 -> 
A29: overall utility estimate | B29: =EXP(MuFromParams(ABS(B28),C28)) ->  | C29: =(SigmaFromParams(B28,C28) / LN(10))^2 ->  | H29: Far-future effect on insects
A30: Pareto posterior | B30: =ParetoPosterior(median,alpha,B29:C29)*SIGN(B28) ->  | I30: Mu | J30: Sigma^2
A31: Log-normal posterior | B31: =LognormPosterior(mu_far_future,sigma_far_future,B29:C29)*SIGN(B28) ->  | H31: insect suffering prevented | I31: =VLOOKUP(H31,$A$18:$E$21,4,FALSE) -> 0.02236067977 | J31: =VLOOKUP(H31,$A$18:$E$21,5,FALSE) -> 0.5075995499
H32: insect weighted utility | I32: =VLOOKUP($H32,'EV of Far Future'!$K$3:$N$14,2,FALSE) -> 1.619086162e+40 | J32: =VLOOKUP($H32,'EV of Far Future'!$K$3:$N$14,3,FALSE) -> 3.511368657
H33: 1/memetically relevant humans | I33: =$D$7 -> 7.07e-10 | J33: =$E$7 -> 0.117447477
A34: Total (Pareto) | B34: =B30+I6 ->  | H34: veg-years permanently created per $1000 | I34: =$D$16 -> 39.69225643 | J34: =$E$16 -> 0.5482413579
A35: Total (log-normal) | B35: =B31+I7 ->  | H35: utility estimate | I35: =PRODUCT(I31:I34) -> 1.015968319e+31 | J35: =SUM(J31:J34) -> 4.684657042

Sheet Cage-Free
A1: Inputs (80% CI) | H1: Direct effect | M1: Far-future effect on suffering simulations
B2: Low CI | C2: High CI | D2: Mu | E2: Sigma^2 | F2: Notes | I2: Mu | J2: Sigma^2 | N2: Mu | O2: Sigma^2
A3: total expenditures ($M) | B3: 2 | C3: 3 | F3: includes all money spent on cage-free campaigns | H3: cage-free years per $1000 | I3: =D10 -> 295803.9892 | J3: =E10 -> 0.3152875372 | M3: suffering simulations prevented | N3: =VLOOKUP(M3,THL!$A$18:$E$21,4,FALSE) -> 0.04472135955 | O3: =VLOOKUP(M3,THL!$A$18:$E$21,5,FALSE) -> 0.5075995499
A4: 1/expenditures | B4: =1/C3 -> 0.3333333333 | C4: =1/B3 -> 0.5 | D4: =GEOMEAN(B4,C4) -> 0.4082482905 | E4: =LogVariance(B4,C4) -> 0.06870236976 | H4: utility per cage removed | I4: =Globals!K24 -> 0.3 | J4: =Globals!L24 -> 0 | M4: simulation weighted utility | N4: =VLOOKUP($M4,'EV of Far Future'!$K$3:$N$14,2,FALSE) -> 3.84e+38 | O4: =VLOOKUP($M4,'EV of Far Future'!$K$3:$N$14,3,FALSE) -> 4.681824876
A5: years until cage-free would have happened anyway | B5: 5 | C5: 10 | D5: =GEOMEAN(B5,C5) -> 7.071067812 | E5: =LogVariance(B5,C5) -> 0.1174474769 | F5: http://www.openphilanthropy.org/blog/initial-grants-support-corporate-cage-free-reforms#Corporate_cage-free_campaigns_are_extremely_cost-effective | H5: utility estimate | I5: =I3*I4 -> 88741.19675 | J5: =J3+J4 -> 0.3152875372 | M5: 1/memetically relevant humans | N5: =THL!$D$7 -> 7.07e-10 | O5: =THL!$E$7 -> 0.117447477
A6: millions of cages prevented | B6: 100 | C6: 150 | D6: 122.4744871 | E6: 0.06870236976 | H6: Pareto posterior | I6: =ParetoPosterior(median,alpha,I5:J5) -> 16679.26918 | M6: veg-years per cage-free year | N6: =$D$11 -> 0.01732050808 | O6: =$E$11 -> 0.5941542995
A7: proportion of change attributable to campaigns | B7: 0.7 | C7: 1 | D7: =GEOMEAN(B7,C7) -> 0.8366600265 | E7: =LogVariance(B7,C7) -> 0.06043532081 | H7: Log-normal posterior | I7: =LognormPosterior(mu_factory_farming,sigma_factory_farming,I5:J5) -> 2531.889137 | M7: veg-years permanently created per $1000 | N7: =THL!$D$16 -> 39.69225643 | O7: =THL!$E$16 -> 0.5482413579
A8: cage-free years per cage prevented | B8: 1 | C8: 1 | D8: 1 | E8: 0 | F8: http://www.unitedegg.org/GeneralStats/default.cfm | M8: utility estimate | N8: =PRODUCT(N3:N7) -> 8.347031488e+27 | O8: =SUM(O3:O7) -> 6.449267561
A9: cage-free years per $1 | D9: =PRODUCT(D4:D8) -> 295.8039892 | E9: =SUM(E4:E8) -> 0.3152875372
A10: cage-free years per $1000 | D10: =D9*1000 -> 295803.9892 | E10: =E9 -> 0.3152875372 | H10: Far-future effect on factory farming
A11: values spreading effect of cage-free year vs vegetarian-year | B11: 0.003 | C11: 0.1 | D11: =GEOMEAN(B11,C11) -> 0.01732050808 | E11: =LogVariance(B11,C11) -> 0.5941542995 | F11: I suspect this is low-ish b/c cage-free has weaker memetic effects than vegetarianism | I11: Mu | J11: Sigma^2 (orders of magnitude) | M11: Far-future effect on hedonium
H12: P(stopping this if we stop factory farming) | I12: 1 | J12: 0 | M12: hedonium caused | N12: =VLOOKUP(M12,THL!$A$18:$E$21,4,FALSE) -> 0.02236067977 | O12: =VLOOKUP(M12,THL!$A$18:$E$21,5,FALSE) -> 0.2727045962
H13: factory farming weighted utility | I13: =VLOOKUP($H13,'EV of Far Future'!$K$3:$N$14,2,FALSE) -> 5.464415797e+33 | J13: =VLOOKUP($H13,'EV of Far Future'!$K$3:$N$14,3,FALSE) -> 2.731064511 | M13: hedonium weighted utility | N13: =VLOOKUP($M13,'EV of Far Future'!$K$3:$N$14,2,FALSE) -> 6.32455532e+46 | O13: =VLOOKUP($M13,'EV of Far Future'!$K$3:$N$14,3,FALSE) -> 3.511368657
H14: 1/memetically relevant humans | I14: =THL!$D$7 -> 7.07e-10 | J14: =THL!$E$7 -> 0.117447477 | M14: 1/memetically relevant humans | N14: =THL!$D$7 -> 7.07e-10 | O14: =THL!$E$7 -> 0.117447477
A15: Results | H15: veg-years per cage-free year | I15: =$D$11 -> 0.01732050808 | J15: =$E$11 -> 0.5941542995 | M15: veg-years per cage-free year | N15: =$D$11 -> 0.01732050808 | O15: =$E$11 -> 0.5941542995
A16: Total far-future effect | B16: Mu | C16: Sigma^2 | H16: veg-years permanently created per $1000 | I16: =THL!$D$16 -> 39.69225643 | J16: =THL!$E$16 -> 0.5482413579 | M16: veg-years permanently created per $1000 | N16: =THL!$D$16 -> 39.69225643 | O16: =THL!$E$16 -> 0.5482413579
A17: exp mean/variance | B17: =N27 -> 4.453771151e+41 | C17: =O27 -> 8.072319316e+94 | H17: utility estimate | I17: =PRODUCT(I12:I16) -> 2.656009156e+24 | J17: =SUM(J12:J16) -> 3.990907646 | M17: utility estimate | N17: =PRODUCT(N12:N16) -> 6.873862292e+35 | O17: =SUM(O12:O16) -> 5.043916388
A18: overall utility estimate | B18: =EXP(MuFromParams(ABS(B17),C17)) -> 6.981626785e+35 | C18: =(SigmaFromParams(B17,C17) / LN(10))^2 -> 5.041960261
A19: Pareto posterior | B19: =ParetoPosterior(median,alpha,B18:C18)*SIGN(B17) -> 1.715592314e+24
A20: Log-normal posterior | B20: =LognormPosterior(mu_far_future,sigma_far_future,B18:C18)*SIGN(B17) -> 120162.8188 | M20: Total positive far-future effect
H21: Far-future effect on wild vertebrates | M21: utility estimates | N21: =I17 -> 2.656009156e+24 | O21: =J17 -> 3.990907646
I22: Mu | J22: Sigma^2 | N22: =I28 -> 1.112937532e+26 | O22: =J28 -> 4.888659268
A23: Total (Pareto) | B23: =B19+I6 -> 1.715592314e+24 | H23: wild vertebrate suffering prevented if we end factory farming | I23: =VLOOKUP(H23,THL!$A$18:$E$21,4,FALSE) -> 0.04472135955 | J23: =VLOOKUP(H23,THL!$A$18:$E$21,5,FALSE) -> 0.5075995499 | N23: =I38 -> 1.759708747e+29 | O23: =J38 -> 5.278811342
A24: Total (log-normal) | B24: =B20+I7 -> 122694.7079 | H24: wild vertebrate weighted utility | I24: =VLOOKUP($H24,'EV of Far Future'!$K$3:$N$14,2,FALSE) -> 5.12e+36 | J24: =VLOOKUP($H24,'EV of Far Future'!$K$3:$N$14,3,FALSE) -> 3.121216584 | N24: =N8 -> 8.347031488e+27 | O24: =O8 -> 6.449267561
H25: 1/memetically relevant humans | I25: =THL!$D$7 -> 7.07e-10 | J25: =THL!$E$7 -> 0.117447477 | N25: =N17 -> 6.873862292e+35 | O25: =O17 -> 5.043916388
H26: veg-years per cage-free year | I26: =$D$11 -> 0.01732050808 | J26: =$E$11 -> 0.5941542995 | M26: sum (buckets) | N26: =WriteArray(SumLognormDists(N21:O25)) ->  | O26: buckets
H27: veg-years permanently created per $1000 | I27: =THL!$D$16 -> 39.69225643 | J27: =THL!$E$16 -> 0.5482413579 | M27: exp mean/variance | N27: =STupidExcelMean(N26) -> 4.453771151e+41 | O27: =STupidExcelVariance(N26,N27) -> 8.072319316e+94
H28: utility estimate | I28: =PRODUCT(I23:I27) -> 1.112937532e+26 | J28: =SUM(J23:J27) -> 4.888659268
H31: Far-future effect on insects
I32: Mu | J32: Sigma^2
H33: insect suffering prevented | I33: =VLOOKUP(H33,THL!$A$18:$E$21,4,FALSE) -> 0.02236067977 | J33: =VLOOKUP(H33,THL!$A$18:$E$21,5,FALSE) -> 0.5075995499
H34: insect weighted utility | I34: =VLOOKUP($H34,'EV of Far Future'!$K$3:$N$14,2,FALSE) -> 1.619086162e+40 | J34: =VLOOKUP($H34,'EV of Far Future'!$K$3:$N$14,3,FALSE) -> 3.511368657
H35: 1/memetically relevant humans | I35: =THL!$D$7 -> 7.07e-10 | J35: =THL!$E$7 -> 0.117447477
H36: veg-years per cage-free year | I36: =$D$11 -> 0.01732050808 | J36: =$E$11 -> 0.5941542995
H37: veg-years permanently created per $1000 | I37: =THL!$D$16 -> 39.69225643 | J37: =THL!$E$16 -> 0.5482413579
H38: utility estimate | I38: =PRODUCT(I33:I37) -> 1.759708747e+29 | J38: =SUM(J33:J37) -> 5.278811342

Sheet AI Safety
A1: General | B1: (80% CI) | G1: Model 1 (GPP) | H1: (80% CI) | I1: http://globalprioritiesproject.org/2015/08/quantifyingaisafety/
B2: Low CI | C2: High CI | D2: Mu | E2: Sigma^2 | H2: Low CI | I2: High CI | J2: Mu | K2: Sigma^2
A3: cost per AI researcher | B3: 70000 | C3: 150000 | F3: some uncertainty here about how to account for counterfactuals; presumably AI safety researchers would do something high value otherwise | G3: P(AI-related extinction) | H3: 0.03 | I3: 0.3 | J3: =GEOMEAN(H3,I3) -> 0.09486832981 | K3: =LogVariance(H3,I3) -> 0.390152073 | L3: Estimated from FHI x-risk survey. CI for probability represents uncertainty about estimate.
A4: 1/cost per AI researcher | B4: =1/C3 -> 6.666666667e-06 | C4: =1/B3 -> 1.428571429e-05 | D4: =GEOMEAN(B4,C4) -> 9.759000729e-06 | E4: =LogVariance(B4,C4) -> 0.1291376906 | G4: size of FAI community when AGI created | H4: 200 | I4: 10000 | L4: See https://intelligence.org/2014/01/28/how-big-is-ai/
G5: 1/size of FAI community when AGI created | H5: =1/I4 -> 0.0001 | I5: =1/H4 -> 0.005 | J5: =GEOMEAN(H5,I5) -> 0.0007071067812 | K5: =LogVariance(H5,I5) -> 0.6628566692
G6: AI researcher multiplicative effect | H6: 1 | I6: 3 | J6: =GEOMEAN(H6,I6) -> 1.732050808 | K6: =LogVariance(H6,I6) -> 0.1861498466 | L6: If we add 1 new researcher now, there will be this many new researchers by the time AGI is developed.
G7: proportion of bad scenarios averted by doubling total research | H7: 0.1 | I7: 0.7 | J7: =GEOMEAN(H7,I7) -> 0.2645751311 | K7: =LogVariance(H7,I7) -> 0.3297167522
G8: x-risk averted per $1000 | J8: =J3*J5*J6*J7*D4*1000 -> 3e-07 | K8: =K3+K5+K6+K7+E4 -> 1.698013032
A9: Results
A10: Unified model
A11: Total (Pareto posterior) | B11: =ParetoPosterior(median,alpha,H26:I26) -> 6.31129671e+27 | G11: Model 2 | H11: (80% CI)
A12: Total (log-normal posterior) | B12: =LognormPosterior(mu_far_future,sigma_far_future,H26:I26) -> 213917.632 | H12: Low CI | I12: High CI | J12: Mu | K12: Sigma^2
G13: hours to solve AI safety | H13: 1000000 | I13: 10000000000 | J13: =GEOMEAN(H13,I13) -> 100000000 | K13: =LogVariance(H13,I13) -> 1.560608292 | L13: Perhaps this should follow Pareto dist? http://intelligence.org/files/PredictingAGI.pdf
G14: hours per year per AI researcher | H14: 2000 | I14: 2000 | J14: =GEOMEAN(H14,I14) -> 2000 | K14: =LogVariance(H14,I14) -> 0
G15: 1/hours to solve | H15: =1/I13 -> 1e-10 | I15: =1/H13 -> 1e-06 | J15: =GEOMEAN(H15,I15) -> 1e-08 | K15: =LogVariance(H15,I15) -> 1.560608292
G16: x-risk averted per $1000 | J16: =J14*J15*D4*1000 -> 1.951800146e-07 | K16: =K14+K15+E4 -> 1.689745983
G19: Model average
G20: x-risk averted per $1000 | J20: =GEOMEAN(J8,J16) -> 2.41979347e-07 | K20: =AVERAGE(K8,K16) -> 1.693879507 | L20: I don't know the right way to calculate this variance
H23: Mu | I23: Sigma^2 (orders of magnitude)
G24: x-risk averted per $1000 | H24: =J20 -> 2.41979347e-07 | I24: =K20 -> 1.693879507
G25: EV far future | H25: ='EV of Far Future'!L19 -> 4.040288521e+46 | I25: ='EV of Far Future'!M19 -> 3.600201532
G26: utility estimate | H26: =PRODUCT(H24:H25) -> 9.776663781e+39 | I26: =SUM(I24:I25) -> 5.294081039
G29: Model 3 (INCOMPLETE) | H29: Low CI | I29: High CI | J29: Mu | K29: Sigma^2 | L29: (assumes AGI is a binary outcome: friendly or unfriendly)
G30: FAI community growth rate | H30: 0.1 | I30: 0.1 | L30: assumes constant exponential growth rate
G31: AGI date | H31: 2040 | I31: 2100
G32: years until AGI | H32: =H31-YEAR(TODAY()) -> 24 | I32: =I31-YEAR(TODAY()) -> 84
G33: researcher-years spent on AI safety by AGI date | H33: =H4/LN(1+H30)*(1-1/((1+H30)^H32)) -> 1885.369231 | I33: =I4/LN(1+I30)*(1-1/((1+I30)^I32)) -> 104885.6024 | J33: =GEOMEAN(H33,I33) -> 14062.29311 | K33: =LogVariance(H33,I33) -> 0.6809400061 | L33: TODO: this just combines 80% CI's, which is incorrect
G34: P(|hours spent - hours needed| <= hours provided by $1000)

Sheet AI Targeted Values Spreading
A1: Inputs (80% CI) | H1: Model
B2: Low CI | C2: High CI | D2: Mu | E2: Sigma^2 | F2: Notes | I2: Mu | J2: Sigma^2
A3: P(friendly AI gets built) | B3: 0.1 | C3: 0.5 | D3: =GEOMEAN(B3,C3) -> 0.2236067977 | E3: =LogVariance(B3,C3) -> 0.2727045962 | H3: hedonium weighted utility | I3: =VLOOKUP(H3,'EV of Far Future'!$K$3:$M$14,2,FALSE) -> 6.32455532e+46 | J3: =VLOOKUP(H3,'EV of Far Future'!$K$3:$M$14,3,FALSE) -> 3.511368657
A4: P(FAI is bad for animals by default) | B4: 0.2 | C4: 0.8 | D4: =GEOMEAN(B4,C4) -> 0.4 | E4: =LogVariance(B4,C4) -> 0.2348949537 | H4: dolorium weighted utility | I4: =VLOOKUP(H4,'EV of Far Future'!$K$3:$M$14,2,FALSE) -> 1.264911064e+46 | J4: =VLOOKUP(H4,'EV of Far Future'!$K$3:$M$14,3,FALSE) -> 3.511368657
A5: P(AI researchers' values matter) | B5: 0.1 | C5: 0.6 | D5: =GEOMEAN(B5,C5) -> 0.2449489743 | E5: =LogVariance(B5,C5) -> 0.3035973235 | H5: factory farming weighted utility | I5: =VLOOKUP(H5,'EV of Far Future'!$K$3:$M$14,2,FALSE) -> 5.464415797e+33 | J5: =VLOOKUP(H5,'EV of Far Future'!$K$3:$M$14,3,FALSE) -> 2.731064511
A6: number of AI researchers when AGI created | B6: 5000 | C6: 100000 | F6: Different from size of AI safety community; presumably all AI researchers could matter. See https://intelligence.org/2014/01/28/how-big-is-ai/ | H6: wild vertebrate weighted utility | I6: =VLOOKUP(H6,'EV of Far Future'!$K$3:$M$14,2,FALSE) -> 5.12e+36 | J6: =VLOOKUP(H6,'EV of Far Future'!$K$3:$M$14,3,FALSE) -> 3.121216584
A7: 1/number of AI researchers | B7: =1/C6 -> 1e-05 | C7: =1/B6 -> 0.0002 | D7: =GEOMEAN(B7,C7) -> 4.472135955e-05 | E7: =LogVariance(B7,C7) -> 0.5075995499 | H7: insect weighted utility | I7: =VLOOKUP(H7,'EV of Far Future'!$K$3:$M$14,2,FALSE) -> 1.619086162e+40 | J7: =VLOOKUP(H7,'EV of Far Future'!$K$3:$M$14,3,FALSE) -> 3.511368657
A8: values propagation multiplier | B8: 0.5 | C8: 5 | D8: =GEOMEAN(B8,C8) -> 1.58113883 | E8: =LogVariance(B8,C8) -> 0.390152073 | F8: If we change one researcher's values today, this many researchers' values will change by the time AGI is developed. | H8: simulation weighted utility | I8: =VLOOKUP(H8,'EV of Far Future'!$K$3:$M$14,2,FALSE) -> 3.84e+38 | J8: =VLOOKUP(H8,'EV of Far Future'!$K$3:$M$14,3,FALSE) -> 4.681824876
A9: cost to convince one AI researcher to care about animals | B9: 1000 | C9: 100000
A10: $1000/cost | B10: =1000/C9 -> 0.01 | C10: =1000/B9 -> 1 | D10: =GEOMEAN(B10,C10) -> 0.1 | E10: =LogVariance(B10,C10) -> 0.7803041461 | H10: hedonium utility estimate | I10: =D13*I3 -> 1.414213562e+45 | J10: =E13+J3 -> 3.784073254
A11: Increased probability AGI is good for animals per $1000 spent | D11: =PRODUCT(D3:D8)*D10 -> 1.549193338e-07 | E11: =SUM(E3:E8)+E10 -> 2.489252642 | H11: dolorium utility estimate | I11: 4e+44 | J11: 3.90152073
H12: factory farming utility estimate | I12: 5.464415797e+33 | J12: 2.731064511
A13: proportion of hedonium scenarios caused by making the FAI animal-friendly | B13: 0.01 | C13: 0.05 | D13: =GEOMEAN(B13,C13) -> 0.02236067977 | E13: =LogVariance(B13,C13) -> 0.2727045962 | H13: wild vertebrate utility estimate | I13: 1.024e+36 | J13: 3.356111538
A14: dolorium scenarios prevented | B14: 0.01 | C14: 0.1 | D14: 0.0316227766 | E14: 0.390152073 | H14: insect utility estimate | I14: 1.619086162e+39 | J14: 3.746263611
A15: factory farming scenarios prevented | B15: 1 | C15: 1 | D15: 1 | E15: 0 | H15: simulation utility estimate | I15: 3.84e+37 | J15: 4.91671983
A16: wild vertebrate suffering prevented | B16: 0.1 | C16: 0.4 | D16: 0.2 | E16: 0.2348949537 | H16: sum (buckets) | I16: =WriteArray(SumLognormDists(I10:J15)) -> 0,0,0,0,0,0,0,0,0,0,0,0,0,0,0,0,0,0,0,0,0,0,0,0,0,0,0,0,0,0,0,0,0,0,0,0,0,0,0,0,0,0,0,0,0,0,0,0,0,0,0,0,0,0,0,0,0,0,0,0,0,0,0,0,0,0,0,0,0,0,0,0,0,0,0,0,0,0,0,0,0,0,0,0,0,0,0,0,0,0,0,0,0,0,0,0,0,0,0,0,0,0,0,0,0,0,0,0,0,0,0,0,0,0,0,0,0,0,0,0,0,0,0,0,0,0,0,0,0,0,0,0,0,0,0,0,0,0,0,0,0,0,0,0,0,0,0,0,0,0,0,0,0,0,0,0,0,0,0,0,0,0,0,0,0,0,0,0,0,0,0,0,0,0,0,0,0,0,0,0,0,0,0,0,0,0,0,0,0,0,0,0,0,0,0,0,0,0,0,0,0,0,0,0,0,0,0,0,0,0,0,0,0,0,0,0,0,0,0,0,0,0,0,0,0,0,0,0,0,0,0,0,0,0,0,0,0,0,0,0,0,0,0,0,0,0,0,0,0,0,0,0,0,0,0,0,0,0,0,0,0,0,0,0,0,0,0,0,0,0,0,0,0,0,0,0,0,0,0,0,0,0,0,0,0,0,0,0,0,0,0,0,0,0,0,0,0,0,0,0,0,0,0,0,0,0,0,0,0,0,0,0,1.53160350210786E-322,1.29692232033327E-320,1.04147061880751E-318,8.2248096194484E-317,6.39560088807195E-315,4.89681688338299E-313,3.69167544482427E-311,2.74037795376272E-309,2.00297203320699E-307,1.44150761464095E-305,1.02149630341434E-303,7.1274574044927E-302,4.89678014487503E-300,3.31256872372814E-298,2.20646823368002E-296,1.44713526921114E-294,9.34543284385646E-293,5.94249379461013E-291,3.7206366225412E-289,2.29374514494957E-287,1.39236352687803E-285,8.32223299432522E-284,4.89786765599086E-282,2.83827423247554E-280,1.61950385773091E-278,9.09892606619879E-277,5.03360343284902E-275,2.74188203719477E-273,1.47061720483741E-271,7.76661587121799E-270,4.03873649779535E-268,2.06795424975965E-266,1.04260128145739E-264,5.17580268319299E-263,2.52999409796062E-261,1.21770995642144E-259,5.77099865458483E-258,2.69302926706761E-256,1.23741215197895E-254,5.598492553299E-253,2.49408632717101E-251,1.09404637796578E-249,4.72545994958694E-248,2.0097256450175E-246,8.4161608835089E-245,3.47037244167998E-243,1.40903955111233E-241,5.63320508947017E-240,2.21755023593849E-238,8.59561869632721E-237,3.28070239791038E-235,1.23294243728087E-233,4.56252535517637E-232,1.66247285476011E-230,5.96473119039383E-229,2.1072423910339E-227,7.33036639432375E-226,2.51087278664182E-224,8.46860443640626E-223,2.81246658560812E-221,9.19711377215554E-220,2.96145195799588E-218,9.38959919704749E-217,2.9314259977856E-215,9.01157341812783E-214,2.72779933932888E-212,8.13045063633613E-211,2.38620372827526E-209,6.89590759597582E-208,1.96230570878184E-206,5.49836460418629E-205,1.51702365972075E-203,4.121387463255E-202,1.10252167211242E-200,2.90418148165914E-199,7.5327513101884E-198,1.92387613134567E-196,4.83831929088969E-195,1.19813631531246E-193,2.9215449886633E-192,7.01477783297217E-191,1.658481457458E-189,3.86102880962569E-188,8.85098403356996E-187,1.99791285583846E-185,4.4407709712599E-184,9.71935500942217E-183,2.09466291201059E-181,4.44517502516866E-180,9.28885140660963E-179,1.9113226277673E-177,3.87262315119096E-176,7.72638142637109E-175,1.51791393416091E-173,2.93642343343104E-172,5.59359712782818E-171,1.0492164734594E-169,1.93794249013549E-168,3.52467432906121E-167,6.3124783083145E-166,1.11322786420681E-164,1.93317862600591E-163,3.30570532000303E-162,5.56622836573371E-161,9.22918048513975E-160,1.50685341102222E-158,2.422619116379E-157,3.8353594362646E-156,5.97907960641896E-155,9.178473982163E-154,1.38744272022384E-152,2.0652310444236E-151,3.02713508750731E-150,4.36923213015867E-149,6.20996552253625E-148,8.69129753321294E-147,1.19782126708004E-145,1.62559375133102E-144,2.17242733894468E-143,2.85885667605674E-142,3.70470859439908E-141,4.72749350337726E-140,5.94051000541147E-139,7.350774894092E-138,8.95694332794495E-137,1.07474285046507E-135,1.26989576915337E-134,1.4775803708117E-133,1.69299018945759E-132,1.91020001080618E-131,2.12238963033188E-130,2.32217031962536E-129,2.50199557164933E-128,2.65462610728599E-127,2.77361007678368E-126,2.85373441871584E-125,2.89140348801987E-124,2.88490665975329E-123,2.83454716291536E-122,2.74261862689014E-121,2.61323186583041E-120,2.45201012142562E-119,2.26568422794918E-118,2.06162825238373E-117,1.84738006085716E-116,1.63018974155248E-115,1.4166324441636E-114,1.21231220158245E-113,1.02167131314442E-112,8.47907636312762E-112,6.92991231679537E-111,5.57763420321751E-110,4.42096110228626E-109,3.45087355143249E-108,2.65270177357078E-107,2.00815030098974E-106,1.49711036154471E-105,1.09916445757904E-104,7.94738545222167E-104,5.659005754458E-103,3.96836681602731E-102,2.74056997687923E-101,1.86392757524699E-100,1.24846940595349e-99,8.23548603023879e-99,5.35013569878705e-98,3.42299616367837e-97,2.15683016820285e-96,1.33842897471833e-95,8.17987237135278e-95,4.92347312973391e-94,2.91858636988912e-93,1.70392944153813e-92,9.79740250786674e-92,5.54820950409214e-91,3.09442277349059e-90,1.69978403901144e-89,9.19597166861316e-89,4.89997465676493e-88,2.57149097081584e-87,1.32914953531212e-86,6.7664853628109e-86,3.39278072316801e-85,1.67553980275638e-84,8.15010270141879e-84,3.90466653237329e-83,1.84255566633719e-82,8.56399592220118e-82,3.92062163111572e-81,1.76790795553739e-80,7.85225364311644e-80,3.43528503560593e-79,1.48036562041255e-78,6.28372341822286e-78,2.62730947628618e-77,1.08207134082616e-76,4.38990975537882e-76,1.75434510603279e-75,6.90619883605847e-75,2.67813696092285e-74,1.02306063367643e-73,3.84990726207185e-73,1.42720081106608e-72,5.21208687296706e-72,1.8751499210078e-71,6.64606222569923e-71,2.32061648586744e-70,7.98288107537134e-70,2.70545474865458e-69,9.03342620360134e-69,2.97169275753631e-68,9.63168677953941e-68,3.07578523885495e-67,9.67772714946659e-67,3.00029032039854e-66,9.16505168500958e-66,2.75865788558529e-65,8.18204767835945e-65,2.39132030810472e-64,6.88709156919892e-64,1.95464340205372e-63,5.46694207698058e-63,1.50688053552564e-62,4.0933912446284e-62,1.09590009827195e-61,2.89171638499877e-61,7.52058742624838e-61,1.92785376712818e-60,4.8712252222113e-60,1.21327799307707e-59,2.97890936229481e-59,7.21018970124378e-59,1.72046892475657e-58,4.04740610169734e-58,9.3876393593065e-58,2.14687300377004e-57,4.84114599909056e-57,1.07647581021098e-56,2.36046707532696e-56,5.10450270150963e-56,1.08866923754691e-55,2.29008540447515e-55,4.75168701454144e-55,9.72551568840978e-55,1.96370126249621e-54,3.9117091243936e-54,7.68807342835134e-54,1.49094259801113e-53,2.85318856270846e-53,5.38841489092685e-53,1.00435806195691e-52,1.84777983675079e-52,3.3557085982903e-52,6.0163070366628e-52,1.06494689519013e-51,1.86131413640667e-51,3.21253430582381e-51,5.47590465215532e-51,9.21910153735345e-51,1.53317413807655e-50,2.51890025979273e-50,4.08878542602486e-50,6.5582740629814e-50,1.03955010675401e-49,1.62858819148291e-49,2.52195333581935e-49,3.8607628776864e-49,5.84346358501835e-49,8.74540306570089e-49,1.29435376849999e-48,1.89470415004362e-48,2.74344815953281e-48,3.92980294357707e-48,5.56948648859769e-48,7.81054827404954e-48,1.08398021910118e-47,1.4889700659756e-47,2.02454033354667e-47,2.72516991802076e-47,3.63193423376335e-47,4.79302674636374e-47,6.26410679764697e-47,8.10840614152149e-47,1.03965240618822e-46,1.32058428239181e-46,1.6619502411374e-46,2.07248866404246e-46,2.56115920360191e-46,3.13688760343539e-46,3.8082611301362e-46,4.5831806820244e-46,5.46847919511234e-46,6.46951945139154e-46,7.58978754206627e-46,8.83050077380244e-46,1.01902504705166e-45,1.16647006981568e-45,1.32463632701047e-45,1.49244674032794e-45,1.66849391117138e-45,1.85105009670327e-45,2.03808974414578e-45,2.22732449794426e-45,2.41624995822053e-45,2.60220284347134e-45,2.78242663621689e-45,2.95414330520644e-45,3.1146283342408e-45,3.26128607002782e-45,3.39172234421254e-45,3.50381143137127e-45,3.59575466784658e-45,3.66612845805806e-45,3.71391990885055e-45,3.73854892548416e-45,3.7398762380275e-45,3.71819746603786e-45,3.67422393593182e-45,3.60905150684634e-45,3.52411911058185e-45,3.42115905036642e-45,3.30214132082678e-45,3.16921430509482e-45,3.02464417952309e-45,2.87075522379102e-45,2.70987301123466e-45,2.54427216156985e-45,2.37612999818264e-45,2.20748708739942e-45,2.04021526892036e-45,1.87599343375518e-45,1.7162909840946e-45,1.56235863034436e-45,1.41522595183647e-45,1.27570497346445e-45,1.14439889113301e-45,1.0217150119759e-45,9.07880955957198e-46,8.02963187251696e-46,7.06886999210469e-46,6.19457157858872e-46,5.40378507944396e-46,4.69275955250532e-46,4.05713352717744e-46,3.49210930348684e-46,2.99261015488429e-46,2.55341887523313e-46,2.16929697040973e-46,1.83508452694811e-46,1.54578138895807e-46,1.2966107417015e-46,1.08306654261886e-46,9.00946469057023e-47,7.46372179868042e-47,6.15798730292859e-47,5.06014951478047e-47,4.14136522681448e-47,3.37593339912056e-47,2.74112632330565e-47,2.2169910854547e-47,1.78613238594957e-47,1.43348601772522e-47,1.14609061694738e-47,9.12863726903185e-48,7.24386788424176e-48,5.7270240722172e-48,4.51126158401994e-48,3.54074270918492e-48,2.76907783002463e-48,2.15793162063384e-48,1.675789243249e-48,1.29687453846304e-48,1.00020990130014e-48,7.6880610946687e-49,5.88969658723305e-49,4.49715011892407e-49,3.42269447322787e-49,2.5965878211952e-49,1.96363045730008e-49,1.48032108660558e-49,1.11252263754851e-49,8.3355762951049e-50,6.2266293090282e-50,4.6374303568669e-50,3.44369589531455e-50,2.54982710272285e-50,1.88256627447488e-50,1.38598312087345e-50,1.01753111171748e-50,7.44959927515123e-51,5.43909119167973e-51,3.96040953630351e-51,2.87597857617494e-51,2.08292573288437e-51,1.50457777371139e-51,1.08397102366866e-51,7.78917869978456e-52,5.5827059786912e-52,3.99102474619836e-52,2.84588610586152e-52,2.02418537559497e-52,1.43611222424505e-52,1.01633503909269e-52,7.17464477301533e-53,5.05222812417425e-53,3.54885398672602e-53,2.48667533736705e-53,1.73811520342551e-53,1.21190592389858e-53,8.42931253858621e-54,5.84857429498346e-54,4.04803163137709e-54,2.79495608494188e-54,1.92505983275363e-54,1.32267266328792e-54,9.06567193327453e-55,6.19851302043625e-55,4.22780770117828e-55,2.87662533192543e-55,1.95250352511618e-55,1.32202846963089e-55,8.92956251346161e-56,6.01672045653734e-56,4.04417188724949e-56,2.71168541521813e-56,1.81379714813078e-56,1.21025698494412e-56,8.05574490252594e-57,5.34900223032566e-57,3.54306040999313e-57,2.34111515693301e-57,1.54313945581657e-57,1.01467157872148e-57,6.65554284745138e-58,4.35490707004529e-58,2.84257204061979e-58,1.85089172832201e-58,1.2022291939107e-58,7.78986672693957e-59,5.0351113278314e-59,3.24656584886591e-59,2.08821517385049e-59,1.33986789816864e-59,8.57598944108156e-60,5.47572762959839e-60,3.48766377969114e-60,2.21596242974911e-60,1.40451060532392e-60,8.88019178871936e-61,5.60085345815171e-61,3.52387479343093e-61,2.21167332736886e-61,1.3846997201796e-61,8.64816974677687e-62,5.38798838250328e-62,3.34859643559688e-62,2.07602490234125e-62,1.28391351610612e-62,7.92085979031287e-63,4.87463502568636e-63,2.99257463938153e-63,1.83265565423835e-63,1.11956582395857e-63,6.82261973419504e-64,4.1474901557485e-64,2.51508183450259e-64,1.52142774693934e-64,9.18085013394584e-65,5.52645601780108e-65,3.31850666686422e-65,1.98779105329582e-65,1.18776557891169e-65,7.07982648148125e-66,4.20965278372092e-66,2.49690278854726e-66,1.47736770501316e-66,8.71981139788236e-67,5.13401368811039e-67,3.01535404220328e-67,1.76665146924524e-67,1.03251090353974e-67,6.01962639230457e-68,3.50086591162303e-68,2.03101154026773e-68,1.17538517349144e-68,6.78545317494405e-69,3.90758353974882e-69,2.24475207647743e-69,1.28634991934039e-69,7.35326863787092e-70,4.19307128502937e-70,2.38514344286571e-70,1.35340302751912e-70,7.66072919838573e-71,4.32557002414697e-71,2.43638994009577e-71,1.36892737692383e-71,7.67262775935198e-72,4.28980850779841e-72,2.39255368816766e-72,1.33111457319535e-72,7.38752728979429e-73,4.08989941131386e-73,2.25868662725949e-73,1.24431150545903e-73,6.83804563152388e-74,3.74856092902097e-74,2.04987235019823e-74,1.11819793863302e-74,6.08471369501146e-75,3.30286760644862e-75,1.78842901344147e-75,9.66010261867936e-76,5.20500600320075e-76,2.79762926382048e-76,1.49999045109179e-76,8.02261968660468e-77,4.2802907300027e-77,2.27803116630904e-77,1.20941502843541e-77,6.40501786731003e-78,3.38372137868043e-78,1.78319193490887e-78,9.37412662794798e-79,4.9157835573342e-79,2.57148435590735e-79,1.34185072087007e-79,6.98479544174927e-80,3.62687292190423e-80,1.8786251646524e-80,9.70682214472074e-81,5.00314559766164e-81,2.57239902943083e-81,1.3193579960607e-81,6.75019139324003e-82,3.44507463089038e-82,1.75392207745929e-82,8.90740229914429e-83,4.51253884558754e-83,2.28044685161602e-83,1.14960349457843e-83,5.78103127776336e-84,2.8999578939416e-84,1.45113294389241e-84,7.24355656361936e-85,3.60682992411049e-85,1.79154877966222e-85,8.87688896883545e-86,4.38755050212642e-86,2.16327969377927e-86,1.06397748885264e-86,5.220131491249e-87,2.55481643712414e-87,1.24728941227444e-87,6.07440949814868e-88,2.95100682607684e-88,1.43009768464522e-88,6.91338206792947e-89,3.33384040553658e-89,1.60371972831171e-89,7.69558403418746e-90,3.68369933063918e-90,1.75896125573663e-90,8.37833868277876e-91,3.98097201721844e-91,1.88690461496898e-91,8.92155205498452e-92,4.20785304377666e-92,1.97975038533608e-92,9.29159070190627e-93,4.35010269162462e-93,2.03160276457719e-93,9.46472440348611e-94,4.39852523072264e-94,2.03908902518365e-94,9.4296445051191e-95,4.34995272248765e-95,2.00172258115984e-95,9.18868636099127e-96,4.20758801880898e-96,1.92195533093988e-96,8.75757217766259e-97,3.98065532921446e-97,1.80491144845386e-97,8.16371360294956e-98,3.68341134246856e-98,1.65784279533238e-98,7.44332877489938e-99,3.33366424749332e-99,1.48938638957693e-99,6.63779512388661E-100,2.95101433285608E-100,1.30872946526593E-100,5.78974723963314E-101,2.55505685338647E-101,1.12479363781217E-101,4.93942657645496E-102,2.1637730114126E-102,9.45536790489745E-103,4.12170416018191E-103,1.79228447042638E-103,7.77443607060725E-104,3.36405255912833E-104,1.45207370852388E-104,6.25239864371752E-105,2.68557239006303E-105,1.15069273158612E-105,4.91829166672373E-106,2.09701576520885E-106,8.91911411446605E-107,3.78420330527143E-107,1.60162199311946E-107,6.7620522061719E-108,2.84793490859356E-108,1.19650565651638E-108,5.01455877693257E-109,2.09644796106152E-109,8.74317068823091E-110,3.63736981677661E-110,1.50952293275145E-110,6.24922055051893E-111,2.58075036499208E-111,1.0631640441545E-111,4.36906829389828E-112,1.7910668257148E-112,7.32435332625778E-113,2.98786837331068E-113,1.21587367294789E-113,4.93571881215029E-114,1.99869935135529E-114,8.07383345585946E-115,3.25347523231708E-115,1.30782844201996E-115,5.2443269552984E-116,2.097802538846E-116,8.37096406018643E-117,3.33213457332586E-117,1.3231404185056E-117,5.24114112081167E-118,2.07101122453678E-118,8.16349073823216E-119,3.21000997104792E-119,1.25914011189555E-119,4.926960900358E-120,1.92318795911056E-120,7.48862508731804E-121,2.9088436110616E-121,1.12713717015818E-121,4.35683864672997E-122,1.67998219462892E-122,6.46214315839918E-123,2.47963274270183E-123,9.49155223307741E-124,3.62431900936367E-124,1.38055938531348E-124,5.24594191805075E-125,1.98852833291296E-125,7.51934865485623E-126,2.83641002599751E-126,1.06732914836859E-126,4.00653110302823E-127,1.5003054316414E-127,5.604438216225E-128,2.0884590336624E-128,7.76357116601323E-129,2.87898268872341E-129,1.06502240309686E-129,3.93025607962267E-130,1.44685700235497E-130,5.31340935019201E-131,1.94654340234648E-131,7.11374525869371E-132,2.59343985915675E-132,9.43187342792404E-133,3.42187322708301E-133,1.23843808098762E-133,4.47125432738109E-134,1.61038386023065E-134,5.7859499683995E-135,2.0737931656115E-135,7.41484330997965E-136,2.64474964576342E-136,9.41051706868901E-137,3.34032725167332E-137,1.18280034160633E-137,4.17812132285147E-138,1.47230613452709E-138,5.17562684698236E-139,1.81499672632794E-139, | J16: buckets
A17: insect suffering prevented | B17: 0.05 | C17: 0.2 | D17: 0.1 | E17: 0.2348949537 | H17: exp mean/variance | I17: =STupidExcelMean(I16) -> 4.510762644e+49 | J17: =STupidExcelVariance(I16,I17) -> 6.90632079e+107
A18: suffering simulations prevented | B18: 0.05 | C18: 0.2 | D18: 0.1 | E18: 0.2348949537 | H18: overall utility estimate | I18: =EXP(MuFromParams(ABS(I17),J17)) -> 2.448367332e+45 | J18: =(SigmaFromParams(I17,J17) / LN(10))^2 -> 3.704856261
A22: Results
A23: Total (Pareto posterior) | B23: =ParetoPosterior(median,alpha,I18:J18) -> 7.213229965e+36
A24: Total (log-normal posterior) | B24: =LognormPosterior(mu_far_future,sigma_far_future,I18:J18) -> 25902525.57
